Workbook

Sheet Events
B1: STATrider / Events
B4: Date | C4: Event | D4: City / Venue | E4: State | F4: Country | G4: Category | H4: Class | I4: Website
B19: Date | C19: Event | D19: City / Venue | E19: State | F19: Country | G19: Category | H19: Class | I19: Website
B20: 2021-11-13 | C20: KIngs County Challenge | D20: Brooklyn | E20: NY | F20: UNITED STATES OF AMERICA
B21: 2021-11-13 | C21: Kings County Challenge | D21: Brooklyn | E21: NY | F21: UNITED STATES OF AMERICA | I21: http://www.BikeReg.com/52644
B22: 2022-03-05 | C22: Randall's Island Crit #1 by Hilltop Bicycles and New York Bicycle Lawyers | D22: New York | E22: NY | F22: UNITED STATES OF AMERICA | I22: http://www.BikeReg.com/53755
B23: 2022-03-06 | C23: 2022 CRCA Women's Development Series (Race 1) | D23: Manhattan | E23: NY | F23: UNITED STATES OF AMERICA | I23: http://www.BikeReg.com/54353
B24: 2022-03-12 | C24: Canceled! Randall's Island Crit #2 by Hilltop Bicycles and New York Bicycle Lawyers | D24: New York | E24: NY | F24: UNITED STATES OF AMERICA | I24: http://www.BikeReg.com/54042
B25: 2022-03-13 | C25: Lucarelli & Castaldi Cup | D25: Brooklyn | E25: NY | F25: UNITED STATES OF AMERICA | I25: http://www.BikeReg.com/54495
B26: 2022-03-19 | C26: CRCA Mengoni Grand Prix | D26: New York | E26: NY | F26: UNITED STATES OF AMERICA
B27: 2022-03-19 | C27: CRCA Mengoni Grand Prix p/b Hincapie (2022) | D27: New York | E27: NY | F27: UNITED STATES OF AMERICA | I27: http://www.BikeReg.com/54371
B28: 2022-03-20 | C28: Randall's Island Crit #3 by Hilltop Bicycles and New York Bicycle Lawyers | D28: New York | E28: NY | F28: UNITED STATES OF AMERICA | I28: http://www.BikeReg.com/54043
B29: 2022-03-20 | C29: Kissena Women's Track Clinic | D29: New York | E29: NY | F29: UNITED STATES OF AMERICA | I29: http://www.BikeReg.com/54708
B30: 2022-03-26 | C30: Randall's Island Crit #4 by Hilltop Bicycles and New York Bicycle Lawyers | D30: New York | E30: NY | F30: UNITED STATES OF AMERICA | I30: http://www.BikeReg.com/54045
B31: 2022-03-27 | C31: GVCC Spring Giro Series | D31: Victor | E31: NY | F31: UNITED STATES OF AMERICA | I31: http://www.BikeReg.com/54143
B32: 2022-03-27 | C32: Castelli Series | D32: Brooklyn | E32: NY | F32: UNITED STATES OF AMERICA | I32: http://www.BikeReg.com/54738
B33: 2022-04-02 | C33: 2022 CRCA Men & Women's Beginner Racing Clinic p/b Ostroy NYC | D33: New York | E33: NY | F33: UNITED STATES OF AMERICA | I33: http://www.BikeReg.com/54364
B34: 2022-04-03 | C34: Randall's Island Crit | D34: New York | E34: NY | F34: UNITED STATES OF AMERICA
B35: 2022-04-03 | C35: Lucarelli & Castaldi Cup #2 | D35: Brooklyn | E35: NY | F35: UNITED STATES OF AMERICA | I35: http://www.BikeReg.com/54736
B36: 2022-04-03 | C36: Toad Strangler | D36: Chatham | E36: NY | F36: UNITED STATES OF AMERICA | I36: http://www.BikeReg.com/53159
B37: 2022-04-09 | C37: Prospect Park race | D37: Brooklyn | E37: NY | F37: UNITED STATES OF AMERICA
B38: 2022-04-09 | C38: 2022 CRCA Women's Development Series (Race 3) | D38: Manhattan | E38: NY | F38: UNITED STATES OF AMERICA | I38: http://www.BikeReg.com/54356
B39: 2022-04-09 | C39: Army Spring Classic - USA Cycling races - ***CANCELLED*** | D39: Stony Point | E39: NY | F39: UNITED STATES OF AMERICA | I39: http://www.BikeReg.com/54638
B40: 2022-04-09 | C40: Prospect Park Circuit race by New York Triathlon Club | D40: Brooklyn | E40: NY | F40: UNITED STATES OF AMERICA | I40: http://www.BikeReg.com/53953
B41: 2022-04-10 | C41: Army Spring Classic - ECCC Races | D41: Stony Point | E41: NY | F41: UNITED STATES OF AMERICA | I41: http://www.BikeReg.com/54636
B42: 2022-04-10 | C42: Army Spring Classic | D42: West Point | E42: NY | F42: UNITED STATES OF AMERICA
B43: 2022-04-10 | C43: Castelli Series #2 | D43: Brooklyn | E43: NY | F43: UNITED STATES OF AMERICA | I43: http://www.BikeReg.com/54741
B44: 2022-04-16 | C44: 2022 CRCA Women's Development Series (Race 4) | D44: Manhattan | E44: NY | F44: UNITED STATES OF AMERICA | I44: http://www.BikeReg.com/54357
B45: 2022-04-17 | C45: Lucarelli & Castaldi Cup #3 | D45: Brooklyn | E45: NY | F45: UNITED STATES OF AMERICA | I45: http://www.BikeReg.com/55109
B46: 2022-04-23 | C46: Trooper David Brinkerhoff Memorial Race Series | D46: Coxsackie | E46: NY | F46: UNITED STATES OF AMERICA | I46: http://www.BikeReg.com/53165
B47: 2022-04-23 | C47: Trooper David Brinkerhoff Memorial Race Series | D47: Coxsackie | E47: NY | F47: UNITED STATES OF AMERICA
B48: 2022-04-30 | C48: Castelli Series #3 | D48: Brooklyn | E48: NY | F48: UNITED STATES OF AMERICA | I48: http://www.BikeReg.com/55110
B49: 2022-05-01 | C49: Women's Woodstock Cycling Grand Prix | D49: Woodstock | E49: NY | F49: UNITED STATES OF AMERICA
B50: 2022-05-01 | C50: Hollenbeck's Spring Classic Road Race | D50: Virgil | E50: NY | F50: UNITED STATES OF AMERICA | I50: http://www.BikeReg.com/54154
B51: 2022-05-01 | C51: Women's Woodstock Cycling Grand Prix | D51: Woodstock | E51: NY | F51: UNITED STATES OF AMERICA | I51: http://www.BikeReg.com/54712
B52: 2022-05-07 | C52: Cazenovia Hillbender 2022 | D52: Chittenango | E52: NY | F52: UNITED STATES OF AMERICA | I52: http://www.BikeReg.com/53343
B53: 2022-05-07 | C53: CRCA Bear Mountain Classic (2022) | D53: Stony Point | E53: NY | F53: UNITED STATES OF AMERICA | I53: http://www.BikeReg.com/54122
B54: 2022-05-07 | C54: Central Park Time Trial p/b Collado.Live | D54: Manhattan | E54: NY | F54: UNITED STATES OF AMERICA | I54: http://www.BikeReg.com/55299
B55: 2022-05-14 | C55: 2022 CRCA Women's Development Series (Race 5) | D55: Manhattan | E55: NY | F55: UNITED STATES OF AMERICA | I55: http://www.BikeReg.com/54358
B56: 2022-05-15 | C56: Farmer's Daughter Gravel Grinder | D56: Chatham | E56: NY | F56: UNITED STATES OF AMERICA | I56: http://www.BikeReg.com/52319
B57: 2022-05-21 | C57: MVP Health Care Rochester Twilight Criterium | D57: Rochester | E57: NY | F57: UNITED STATES OF AMERICA | I57: http://www.BikeReg.com/54194
B58: 2022-05-21 | C58: Beach Channel Time Trial p/b Long Beach Bicycles and New York Bike Lawyers | D58: Rockaway Park | E58: NY | F58: UNITED STATES OF AMERICA | I58: http://www.BikeReg.com/55234
B59: 2022-05-22 | C59: Keuka Lake Gravel Classic | D59: Hammondsport | E59: NY | F59: UNITED STATES OF AMERICA | I59: http://www.BikeReg.com/53065
B60: 2022-05-22 | C60: 2022 CRCA Men & Women's Beginner Racing Clinic p/b Ostroy NYC | D60: Manhattan | E60: NY | F60: UNITED STATES OF AMERICA | I60: http://www.BikeReg.com/54359
B61: 2022-05-30 | C61: Tour of Buffalo | D61: Buffalo | E61: NY | F61: UNITED STATES OF AMERICA | I61: http://www.BikeReg.com/54349
B62: 2022-06-01 | C62: Charlton Road & River Rd Time Trial Series - Week 1 | D62: Ballston Spa | E62: NY | F62: UNITED STATES OF AMERICA | I62: http://www.BikeReg.com/55217
B63: 2022-06-04 | C63: ShelterBox Ride | D63: Henderson Harbor | E63: NY | F63: UNITED STATES OF AMERICA | I63: http://www.BikeReg.com/53870
B64: 2022-06-04 | C64: CRCA Dave Jordan Central Park Classic - 10th Annual Edition | D64: New York | E64: NY | F64: UNITED STATES OF AMERICA | I64: http://www.BikeReg.com/55555
B65: 2022-06-04 | C65: Whiteface Mountain 20th Annual Uphill Bike Race | D65: Wilmington | E65: NY | F65: UNITED STATES OF AMERICA | I65: http://www.BikeReg.com/53930
B66: 2022-06-05 | C66: CNY Women's Road Racing Clinic - Beginner and Skills Refresher | D66: Syracuse | E66: NY | F66: UNITED STATES OF AMERICA | I66: http://www.BikeReg.com/54788
B67: 2022-06-07 | C67: Charlton Road & River Rd Time Trial Series - Week 2 | D67: Fort Edward | E67: NY | F67: UNITED STATES OF AMERICA | I67: http://www.BikeReg.com/55231
B68: 2022-06-15 | C68: Charlton Road & River Rd Time Trial Series - Week 3 | D68: Ballston Spa | E68: NY | F68: UNITED STATES OF AMERICA | I68: http://www.BikeReg.com/55227
B69: 2022-06-19 | C69: 2022 Harlem Skyscraper Cycling Classic | D69: Manhattan | E69: NY | F69: UNITED STATES OF AMERICA | I69: http://www.BikeReg.com/55546
B70: 2022-06-19 | C70: Hamburg Weekend | D70: Hamburg | E70: NY | F70: UNITED STATES OF AMERICA | I70: http://www.BikeReg.com/54365
B71: 2022-06-21 | C71: Charlton Road & River Rd Time Trial Series - Week 4 | D71: Fort Edward | E71: NY | F71: UNITED STATES OF AMERICA | I71: http://www.BikeReg.com/55273
B72: 2022-06-29 | C72: Charlton Road & River Rd Time Trial Series - Week 5 | D72: Ballston Spa | E72: NY | F72: UNITED STATES OF AMERICA | I72: http://www.BikeReg.com/55228
B73: 2022-07-05 | C73: Charlton Road & River Rd Time Trial Series - Week 6 | D73: Fort Edward | E73: NY | F73: UNITED STATES OF AMERICA | I73: http://www.BikeReg.com/55274
B74: 2022-07-10 | C74: Buffalo Bicycling Club's 50th Anniversary Criterium | D74: Orchard Park | E74: NY | F74: UNITED STATES OF AMERICA | I74: http://www.BikeReg.com/54373
B75: 2022-07-10 | C75: 2022 New York State Time Trial Championships | D75: Tioga Center | E75: NY | F75: UNITED STATES OF AMERICA | I75: http://www.BikeReg.com/53135
B76: 2022-07-13 | C76: Charlton Road & River Rd Time Trial Series - Week 7 | D76: Ballston Spa | E76: NY | F76: UNITED STATES OF AMERICA | I76: http://www.BikeReg.com/55229
B77: 2022-07-16 | C77: NY Capital Region Road Race | D77: Albany (Ravena) | E77: NY | F77: UNITED STATES OF AMERICA | I77: http://www.BikeReg.com/55387
B78: 2022-07-17 | C78: Freedom Run Winery Road Race powered by Kanberra | D78: Lockport | E78: NY | F78: UNITED STATES OF AMERICA | I78: http://www.BikeReg.com/54370
B79: 2022-07-17 | C79: 2022 CRCA Women's Development Series (Race 8) | D79: Manhattan | E79: NY | F79: UNITED STATES OF AMERICA | I79: http://www.BikeReg.com/54360
B80: 2022-07-23 | C80: CRCA Grant's Tomb Crit (2022) | D80: New York | E80: NY | F80: UNITED STATES OF AMERICA | I80: http://www.BikeReg.com/53932
B81: 2022-08-07 | C81: 2022 CRCA Women's Development Series (Race 9) | D81: Manhattan | E81: NY | F81: UNITED STATES OF AMERICA | I81: http://www.BikeReg.com/54361
B82: 2022-08-07 | C82: The Plan2Peak: Two Days of Buffalo Stage Race | D82: Buffalo | E82: NY | F82: UNITED STATES OF AMERICA | I82: http://www.BikeReg.com/53035
B83: 2022-08-13 | C83: Castelli Series | D83: Brooklyn | E83: NY | F83: UNITED STATES OF AMERICA
B84: 2022-08-14 | C84: 2022 CRCA Women's Development Series (Series Championship) | D84: Manhattan | E84: NY | F84: UNITED STATES OF AMERICA | I84: http://www.BikeReg.com/54362
B85: 2022-08-20 | C85: Lucarelli & Castaldi Cup | D85: Brooklyn | E85: NY | F85: UNITED STATES OF AMERICA
B86: 2022-08-21 | C86: East Arcade Weekend | D86: Arcade | E86: NY | F86: UNITED STATES OF AMERICA | I86: http://www.BikeReg.com/54379
B87: 2022-09-03 | C87: 2022 CRCA Women's Development Series (Race 12) | D87: Manhattan | E87: NY | F87: UNITED STATES OF AMERICA | I87: http://www.BikeReg.com/54363
B88: 2022-09-03 | C88: CRCA Club Series | D88: New York | E88: NY | F88: UNITED STATES OF AMERICA
B89: 2022-12-31 | C89: 2022 Genesee Valley Cycling Club Membership | D89: Rochester | E89: NY | F89: UNITED STATES OF AMERICA | I89: http://www.BikeReg.com/53972

Sheet Setup
B1: STATrider / Setup
B3: Available Time For Training | J3: Favorite Events
B4: Avg. time per day: | C4: 1 | D4: h | E4: 30 | F4: min | H4: =Available_Annual_Hours -> 360 | J4: Date | K4: Event | L4: City / Venue | M4: State
B5: Days per week: | C5: 5 | H5: =Available_Annual_Hours -> 360 | N5: .
B6: Training start date: | C6: 2 | D6: / | E6: 28 | F6: / | G6: 2022 | H6: =Weeks_Available -> 25 | N6: .
B7: Race goal date: | C7: 8 | D7: / | E7: 20 | F7: / | G7: 2022 | H7: =Weeks_Available -> 25 | N7: .
B8: Rider height: | C8: 6 | D8: ft | E8: 0 | F8: =IF(ISBLANK(HeightUnit)=TRUE,"",IF(HeightUnit="ft","in","cm")) -> in | N8: .
B9: First week: | C9: =IF(AND(StartYear<>"",StartMonth<>"",StartDay<>"")=TRUE,IFERROR(MONDAYDATE(DATE(StartYear,StartMonth,StartDay)),""),"") -> 2022-02-28 | N9: .
B10: Last week: | C10: =IF(AND(RaceYear<>"",RaceMonth<>"",RaceDay<>"")=TRUE,IFERROR(MONDAYDATE(DATE(RaceYear,RaceMonth,RaceDay)),""),"") -> 2022-08-15 | N10: .
B11: Advanced Setup (Optional) | C11: Reset Charts / Targets | N11: .
B12: Weeks available for training: | C12: =IFERROR((_xlfn.DAYS(LastWeek,FirstWeek)/7)+1,0) -> 25
B13: Estimated annual hours: | C13: =INT(((HoursPerDay + (MinPerDay / 60)) * DaysPerWeek * 48)) -> 360
B14: Number of Weeks / Period
B15: Period | C15: Max | D15: B1 | E15: Min | F15: B2 | G15: Plan | H15: W.
B16: Race | C16: 2 | D16: =IF(Number_of_Weeks[[#This Row],[Max]]<Number_of_Weeks[[#This Row],[Min]],0,1) -> 1 | E16: 1 | F16: =IF(Number_of_Weeks[[#This Row],[Max]]<Number_of_Weeks[[#This Row],[Min]],0,1) -> 1 | G16: 2 | H16: 8
B17: Peak | C17: 2 | D17: =IF(Number_of_Weeks[[#This Row],[Max]]<Number_of_Weeks[[#This Row],[Min]],0,1) -> 1 | E17: 1 | F17: =IF(Number_of_Weeks[[#This Row],[Max]]<Number_of_Weeks[[#This Row],[Min]],0,1) -> 1 | G17: 2 | H17: 7
B18: Build II | C18: 4 | D18: =IF(Number_of_Weeks[[#This Row],[Max]]<Number_of_Weeks[[#This Row],[Min]],0,1) -> 1 | E18: 0 | F18: =IF(Number_of_Weeks[[#This Row],[Max]]<Number_of_Weeks[[#This Row],[Min]],0,1) -> 1 | G18: 4 | H18: 6
B19: Build I | C19: 4 | D19: =IF(Number_of_Weeks[[#This Row],[Max]]<Number_of_Weeks[[#This Row],[Min]],0,1) -> 1 | E19: 0 | F19: =IF(Number_of_Weeks[[#This Row],[Max]]<Number_of_Weeks[[#This Row],[Min]],0,1) -> 1 | G19: 4 | H19: 5
B20: Base III | C20: 4 | D20: =IF(Number_of_Weeks[[#This Row],[Max]]<Number_of_Weeks[[#This Row],[Min]],0,1) -> 1 | E20: 0 | F20: =IF(Number_of_Weeks[[#This Row],[Max]]<Number_of_Weeks[[#This Row],[Min]],0,1) -> 1 | G20: 4 | H20: 4
B21: Base II | C21: 4 | D21: =IF(Number_of_Weeks[[#This Row],[Max]]<Number_of_Weeks[[#This Row],[Min]],0,1) -> 1 | E21: 0 | F21: =IF(Number_of_Weeks[[#This Row],[Max]]<Number_of_Weeks[[#This Row],[Min]],0,1) -> 1 | G21: 4 | H21: 3
B22: Base I | C22: 4 | D22: =IF(Number_of_Weeks[[#This Row],[Max]]<Number_of_Weeks[[#This Row],[Min]],0,1) -> 1 | E22: 0 | F22: =IF(Number_of_Weeks[[#This Row],[Max]]<Number_of_Weeks[[#This Row],[Min]],0,1) -> 1 | G22: 1 | H22: 2
B23: Prep. | C23: 4 | D23: =IF(Number_of_Weeks[[#This Row],[Max]]<Number_of_Weeks[[#This Row],[Min]],0,1) -> 1 | E23: 0 | F23: =IF(Number_of_Weeks[[#This Row],[Max]]<Number_of_Weeks[[#This Row],[Min]],0,1) -> 1 | G23: 0 | H23: 1
B24: Total | C24: =SUM(Number_of_Weeks[Max]) -> 28 | E24: =SUM(Number_of_Weeks[Min]) -> 2 | G24: =SUM(Number_of_Weeks[Plan]) -> 21 | H24: =SUMPRODUCT(Period_Weight,Number_of_Weeks[Plan]) -> 104
B25: Weight unit
B26: BMI goal* | C26: *For adults 20 years old and older - CDC.GOV
B27: Min BMI | C27: 21 | D27: =IF(BMI_min>BMI_max,0,1) -> 1
B28: Max BMI | C28: 22.4 | D28: =IF(BMI_min>BMI_max,0,1) -> 1

Sheet Calendar
B1: STATrider / Calendar
B2: Season 2022 / 2022
B15: Wk | C15: Date | D15: Period | E15: Event | F15: Event Date | G15: Plan. Hrs | H15: Mon | I15: Tue | J15: Wed | K15: Thu | L15: Fri | M15: Sat | N15: Sun | O15: Actual Hrs | P15: Cal. | Q15: Cal. Goal | R15: Power | S15: Power Goal | T15: Weight | U15: Weight Goal | V15: HR | W15: HR Goal | X15: Period2 | Y15: Plan. Hrs Chart | Z15: Cal. Goal Chart | AA15: HR Goal Chart | AB15: Weight Goal Chart | AC15: Power Goal Chart | AD15: BMI | AE15: Speed | AF15: Elevation | AG15: Distance | AH15: Climber Index | AI15: Cal/hour | AJ15: Today Week | AK15: Plan. Hrs2 | AL15: Actual Hrs2
T16: =IF(ISBLANK(VLOOKUP(Calendar[[#This Row],[Date]],WeightTable[],2,FALSE))=TRUE,NA(),VLOOKUP(Calendar[[#This Row],[Date]],WeightTable[],IF(WeightUnit="lb",2,3),FALSE)) ->  | U16: =IF(ISBLANK(INDEX(TargetsTable[],MATCH(Calendar[[#This Row],[Date]],TargetsTable[Date],0),MATCH(Calendar[#Headers],TargetsTable[#Headers],0)))=TRUE,NA(),INDEX(TargetsTable[],MATCH(Calendar[[#This Row],[Date]],TargetsTable[Date],0),MATCH(Calendar[#Headers],TargetsTable[#Headers],0))) ->  | V16: =IF(ISBLANK(VLOOKUP(Calendar[[#This Row],[Date]],UploadQuery[],MATCH("Heart Rate",UploadQuery[#Headers],0),FALSE))=TRUE,NA(),VLOOKUP(Calendar[[#This Row],[Date]],UploadQuery[],MATCH("Heart Rate",UploadQuery[#Headers],0),FALSE)) ->  | W16: =IF(ISBLANK(INDEX(TargetsTable[],MATCH(Calendar[[#This Row],[Date]],TargetsTable[Date],0),MATCH(Calendar[#Headers],TargetsTable[#Headers],0)))=TRUE,NA(),INDEX(TargetsTable[],MATCH(Calendar[[#This Row],[Date]],TargetsTable[Date],0),MATCH(Calendar[#Headers],TargetsTable[#Headers],0))) ->  | X16: =Calendar[[#This Row],[Period]] -> 0 | Y16: =IFERROR(IF(Calendar[[#This Row],[Plan. Hrs]]<Calendar[[#This Row],[Actual Hrs]],0,Calendar[[#This Row],[Plan. Hrs]]-Calendar[[#This Row],[Actual Hrs]]),Calendar[[#This Row],[Plan. Hrs]]) -> 0 | Z16: =IFERROR(IF(Calendar[[#This Row],[Cal. Goal]]<Calendar[[#This Row],[Cal.]],0,Calendar[[#This Row],[Cal. Goal]]-Calendar[[#This Row],[Cal.]]),Calendar[[#This Row],[Cal. Goal]]) -> 0 | AD16: =BMIf(Calendar[[#This Row],[Weight]],ActualHeight) ->  | AE16: =VLOOKUP(Calendar[[#This Row],[Date]],UploadQuery[],MATCH("Speed",UploadQuery[#Headers],0),FALSE) ->  | AF16: =VLOOKUP(Calendar[[#This Row],[Date]],UploadQuery[],MATCH("Elev Gain",UploadQuery[#Headers],0),FALSE) ->  | AG16: =VLOOKUP(Calendar[[#This Row],[Date]],UploadQuery[],MATCH("Distance",UploadQuery[#Headers],0),FALSE) ->  | AH16: =VLOOKUP(Calendar[[#This Row],[Date]],UploadQuery[],MATCH("Climber Index",UploadQuery[#Headers],0),FALSE) ->  | AI16: =VLOOKUP(Calendar[[#This Row],[Date]],UploadQuery[],MATCH("Cal/hour",UploadQuery[#Headers],0),FALSE) ->  | AJ16: =IF(YEAR(Calendar[[#This Row],[Date]])=YEAR(TodayDate),IF(WEEKNUM(Calendar[[#This Row],[Date]],21)=WEEKNUM(TodayDate,21),IFERROR(MAX(Calendar[[#This Row],[Actual Hrs]],Calendar[[#This Row],[Plan. Hrs]])+(2/24),Calendar[[#This Row],[Plan. Hrs]]+(2/24)),-1),-1) -> -1 | AK16: =SUM(Calendar[[#This Row],[Mon]:[Sun]]) -> 0 | AL16: =VLOOKUP(Calendar[[#This Row],[Date]],UploadQuery[],MATCH("Activity Time",UploadQuery[#Headers],0),FALSE) -> 
T17: =IF(ISBLANK(VLOOKUP(Calendar[[#This Row],[Date]],WeightTable[],2,FALSE))=TRUE,NA(),VLOOKUP(Calendar[[#This Row],[Date]],WeightTable[],IF(WeightUnit="lb",2,3),FALSE)) ->  | U17: =IF(ISBLANK(INDEX(TargetsTable[],MATCH(Calendar[[#This Row],[Date]],TargetsTable[Date],0),MATCH(Calendar[#Headers],TargetsTable[#Headers],0)))=TRUE,NA(),INDEX(TargetsTable[],MATCH(Calendar[[#This Row],[Date]],TargetsTable[Date],0),MATCH(Calendar[#Headers],TargetsTable[#Headers],0))) ->  | V17: =IF(ISBLANK(VLOOKUP(Calendar[[#This Row],[Date]],UploadQuery[],MATCH("Heart Rate",UploadQuery[#Headers],0),FALSE))=TRUE,NA(),VLOOKUP(Calendar[[#This Row],[Date]],UploadQuery[],MATCH("Heart Rate",UploadQuery[#Headers],0),FALSE)) ->  | W17: =IF(ISBLANK(INDEX(TargetsTable[],MATCH(Calendar[[#This Row],[Date]],TargetsTable[Date],0),MATCH(Calendar[#Headers],TargetsTable[#Headers],0)))=TRUE,NA(),INDEX(TargetsTable[],MATCH(Calendar[[#This Row],[Date]],TargetsTable[Date],0),MATCH(Calendar[#Headers],TargetsTable[#Headers],0))) ->  | X17: =Calendar[[#This Row],[Period]] -> 0 | Y17: =IFERROR(IF(Calendar[[#This Row],[Plan. Hrs]]<Calendar[[#This Row],[Actual Hrs]],0,Calendar[[#This Row],[Plan. Hrs]]-Calendar[[#This Row],[Actual Hrs]]),Calendar[[#This Row],[Plan. Hrs]]) -> 0 | Z17: =IFERROR(IF(Calendar[[#This Row],[Cal. Goal]]<Calendar[[#This Row],[Cal.]],0,Calendar[[#This Row],[Cal. Goal]]-Calendar[[#This Row],[Cal.]]),Calendar[[#This Row],[Cal. Goal]]) -> 0 | AD17: =BMIf(Calendar[[#This Row],[Weight]],ActualHeight) ->  | AE17: =VLOOKUP(Calendar[[#This Row],[Date]],UploadQuery[],MATCH("Speed",UploadQuery[#Headers],0),FALSE) ->  | AF17: =VLOOKUP(Calendar[[#This Row],[Date]],UploadQuery[],MATCH("Elev Gain",UploadQuery[#Headers],0),FALSE) ->  | AG17: =VLOOKUP(Calendar[[#This Row],[Date]],UploadQuery[],MATCH("Distance",UploadQuery[#Headers],0),FALSE) ->  | AH17: =VLOOKUP(Calendar[[#This Row],[Date]],UploadQuery[],MATCH("Climber Index",UploadQuery[#Headers],0),FALSE) ->  | AI17: =VLOOKUP(Calendar[[#This Row],[Date]],UploadQuery[],MATCH("Cal/hour",UploadQuery[#Headers],0),FALSE) ->  | AJ17: =IF(YEAR(Calendar[[#This Row],[Date]])=YEAR(TodayDate),IF(WEEKNUM(Calendar[[#This Row],[Date]],21)=WEEKNUM(TodayDate,21),IFERROR(MAX(Calendar[[#This Row],[Actual Hrs]],Calendar[[#This Row],[Plan. Hrs]])+(2/24),Calendar[[#This Row],[Plan. Hrs]]+(2/24)),-1),-1) -> -1 | AK17: =SUM(Calendar[[#This Row],[Mon]:[Sun]]) -> 0 | AL17: =VLOOKUP(Calendar[[#This Row],[Date]],UploadQuery[],MATCH("Activity Time",UploadQuery[#Headers],0),FALSE) -> 
T18: =IF(ISBLANK(VLOOKUP(Calendar[[#This Row],[Date]],WeightTable[],2,FALSE))=TRUE,NA(),VLOOKUP(Calendar[[#This Row],[Date]],WeightTable[],IF(WeightUnit="lb",2,3),FALSE)) ->  | U18: =IF(ISBLANK(INDEX(TargetsTable[],MATCH(Calendar[[#This Row],[Date]],TargetsTable[Date],0),MATCH(Calendar[#Headers],TargetsTable[#Headers],0)))=TRUE,NA(),INDEX(TargetsTable[],MATCH(Calendar[[#This Row],[Date]],TargetsTable[Date],0),MATCH(Calendar[#Headers],TargetsTable[#Headers],0))) ->  | V18: =IF(ISBLANK(VLOOKUP(Calendar[[#This Row],[Date]],UploadQuery[],MATCH("Heart Rate",UploadQuery[#Headers],0),FALSE))=TRUE,NA(),VLOOKUP(Calendar[[#This Row],[Date]],UploadQuery[],MATCH("Heart Rate",UploadQuery[#Headers],0),FALSE)) ->  | W18: =IF(ISBLANK(INDEX(TargetsTable[],MATCH(Calendar[[#This Row],[Date]],TargetsTable[Date],0),MATCH(Calendar[#Headers],TargetsTable[#Headers],0)))=TRUE,NA(),INDEX(TargetsTable[],MATCH(Calendar[[#This Row],[Date]],TargetsTable[Date],0),MATCH(Calendar[#Headers],TargetsTable[#Headers],0))) ->  | X18: =Calendar[[#This Row],[Period]] -> 0 | Y18: =IFERROR(IF(Calendar[[#This Row],[Plan. Hrs]]<Calendar[[#This Row],[Actual Hrs]],0,Calendar[[#This Row],[Plan. Hrs]]-Calendar[[#This Row],[Actual Hrs]]),Calendar[[#This Row],[Plan. Hrs]]) -> 0 | Z18: =IFERROR(IF(Calendar[[#This Row],[Cal. Goal]]<Calendar[[#This Row],[Cal.]],0,Calendar[[#This Row],[Cal. Goal]]-Calendar[[#This Row],[Cal.]]),Calendar[[#This Row],[Cal. Goal]]) -> 0 | AD18: =BMIf(Calendar[[#This Row],[Weight]],ActualHeight) ->  | AE18: =VLOOKUP(Calendar[[#This Row],[Date]],UploadQuery[],MATCH("Speed",UploadQuery[#Headers],0),FALSE) ->  | AF18: =VLOOKUP(Calendar[[#This Row],[Date]],UploadQuery[],MATCH("Elev Gain",UploadQuery[#Headers],0),FALSE) ->  | AG18: =VLOOKUP(Calendar[[#This Row],[Date]],UploadQuery[],MATCH("Distance",UploadQuery[#Headers],0),FALSE) ->  | AH18: =VLOOKUP(Calendar[[#This Row],[Date]],UploadQuery[],MATCH("Climber Index",UploadQuery[#Headers],0),FALSE) ->  | AI18: =VLOOKUP(Calendar[[#This Row],[Date]],UploadQuery[],MATCH("Cal/hour",UploadQuery[#Headers],0),FALSE) ->  | AJ18: =IF(YEAR(Calendar[[#This Row],[Date]])=YEAR(TodayDate),IF(WEEKNUM(Calendar[[#This Row],[Date]],21)=WEEKNUM(TodayDate,21),IFERROR(MAX(Calendar[[#This Row],[Actual Hrs]],Calendar[[#This Row],[Plan. Hrs]])+(2/24),Calendar[[#This Row],[Plan. Hrs]]+(2/24)),-1),-1) -> -1 | AK18: =SUM(Calendar[[#This Row],[Mon]:[Sun]]) -> 0 | AL18: =VLOOKUP(Calendar[[#This Row],[Date]],UploadQuery[],MATCH("Activity Time",UploadQuery[#Headers],0),FALSE) -> 
T19: =IF(ISBLANK(VLOOKUP(Calendar[[#This Row],[Date]],WeightTable[],2,FALSE))=TRUE,NA(),VLOOKUP(Calendar[[#This Row],[Date]],WeightTable[],IF(WeightUnit="lb",2,3),FALSE)) ->  | U19: =IF(ISBLANK(INDEX(TargetsTable[],MATCH(Calendar[[#This Row],[Date]],TargetsTable[Date],0),MATCH(Calendar[#Headers],TargetsTable[#Headers],0)))=TRUE,NA(),INDEX(TargetsTable[],MATCH(Calendar[[#This Row],[Date]],TargetsTable[Date],0),MATCH(Calendar[#Headers],TargetsTable[#Headers],0))) ->  | V19: =IF(ISBLANK(VLOOKUP(Calendar[[#This Row],[Date]],UploadQuery[],MATCH("Heart Rate",UploadQuery[#Headers],0),FALSE))=TRUE,NA(),VLOOKUP(Calendar[[#This Row],[Date]],UploadQuery[],MATCH("Heart Rate",UploadQuery[#Headers],0),FALSE)) ->  | W19: =IF(ISBLANK(INDEX(TargetsTable[],MATCH(Calendar[[#This Row],[Date]],TargetsTable[Date],0),MATCH(Calendar[#Headers],TargetsTable[#Headers],0)))=TRUE,NA(),INDEX(TargetsTable[],MATCH(Calendar[[#This Row],[Date]],TargetsTable[Date],0),MATCH(Calendar[#Headers],TargetsTable[#Headers],0))) ->  | X19: =Calendar[[#This Row],[Period]] -> 0 | Y19: =IFERROR(IF(Calendar[[#This Row],[Plan. Hrs]]<Calendar[[#This Row],[Actual Hrs]],0,Calendar[[#This Row],[Plan. Hrs]]-Calendar[[#This Row],[Actual Hrs]]),Calendar[[#This Row],[Plan. Hrs]]) -> 0 | Z19: =IFERROR(IF(Calendar[[#This Row],[Cal. Goal]]<Calendar[[#This Row],[Cal.]],0,Calendar[[#This Row],[Cal. Goal]]-Calendar[[#This Row],[Cal.]]),Calendar[[#This Row],[Cal. Goal]]) -> 0 | AD19: =BMIf(Calendar[[#This Row],[Weight]],ActualHeight) ->  | AE19: =VLOOKUP(Calendar[[#This Row],[Date]],UploadQuery[],MATCH("Speed",UploadQuery[#Headers],0),FALSE) ->  | AF19: =VLOOKUP(Calendar[[#This Row],[Date]],UploadQuery[],MATCH("Elev Gain",UploadQuery[#Headers],0),FALSE) ->  | AG19: =VLOOKUP(Calendar[[#This Row],[Date]],UploadQuery[],MATCH("Distance",UploadQuery[#Headers],0),FALSE) ->  | AH19: =VLOOKUP(Calendar[[#This Row],[Date]],UploadQuery[],MATCH("Climber Index",UploadQuery[#Headers],0),FALSE) ->  | AI19: =VLOOKUP(Calendar[[#This Row],[Date]],UploadQuery[],MATCH("Cal/hour",UploadQuery[#Headers],0),FALSE) ->  | AJ19: =IF(YEAR(Calendar[[#This Row],[Date]])=YEAR(TodayDate),IF(WEEKNUM(Calendar[[#This Row],[Date]],21)=WEEKNUM(TodayDate,21),IFERROR(MAX(Calendar[[#This Row],[Actual Hrs]],Calendar[[#This Row],[Plan. Hrs]])+(2/24),Calendar[[#This Row],[Plan. Hrs]]+(2/24)),-1),-1) -> -1 | AK19: =SUM(Calendar[[#This Row],[Mon]:[Sun]]) -> 0 | AL19: =VLOOKUP(Calendar[[#This Row],[Date]],UploadQuery[],MATCH("Activity Time",UploadQuery[#Headers],0),FALSE) -> 
T20: =IF(ISBLANK(VLOOKUP(Calendar[[#This Row],[Date]],WeightTable[],2,FALSE))=TRUE,NA(),VLOOKUP(Calendar[[#This Row],[Date]],WeightTable[],IF(WeightUnit="lb",2,3),FALSE)) ->  | U20: =IF(ISBLANK(INDEX(TargetsTable[],MATCH(Calendar[[#This Row],[Date]],TargetsTable[Date],0),MATCH(Calendar[#Headers],TargetsTable[#Headers],0)))=TRUE,NA(),INDEX(TargetsTable[],MATCH(Calendar[[#This Row],[Date]],TargetsTable[Date],0),MATCH(Calendar[#Headers],TargetsTable[#Headers],0))) ->  | V20: =IF(ISBLANK(VLOOKUP(Calendar[[#This Row],[Date]],UploadQuery[],MATCH("Heart Rate",UploadQuery[#Headers],0),FALSE))=TRUE,NA(),VLOOKUP(Calendar[[#This Row],[Date]],UploadQuery[],MATCH("Heart Rate",UploadQuery[#Headers],0),FALSE)) ->  | W20: =IF(ISBLANK(INDEX(TargetsTable[],MATCH(Calendar[[#This Row],[Date]],TargetsTable[Date],0),MATCH(Calendar[#Headers],TargetsTable[#Headers],0)))=TRUE,NA(),INDEX(TargetsTable[],MATCH(Calendar[[#This Row],[Date]],TargetsTable[Date],0),MATCH(Calendar[#Headers],TargetsTable[#Headers],0))) ->  | X20: =Calendar[[#This Row],[Period]] -> 0 | Y20: =IFERROR(IF(Calendar[[#This Row],[Plan. Hrs]]<Calendar[[#This Row],[Actual Hrs]],0,Calendar[[#This Row],[Plan. Hrs]]-Calendar[[#This Row],[Actual Hrs]]),Calendar[[#This Row],[Plan. Hrs]]) -> 0 | Z20: =IFERROR(IF(Calendar[[#This Row],[Cal. Goal]]<Calendar[[#This Row],[Cal.]],0,Calendar[[#This Row],[Cal. Goal]]-Calendar[[#This Row],[Cal.]]),Calendar[[#This Row],[Cal. Goal]]) -> 0 | AD20: =BMIf(Calendar[[#This Row],[Weight]],ActualHeight) ->  | AE20: =VLOOKUP(Calendar[[#This Row],[Date]],UploadQuery[],MATCH("Speed",UploadQuery[#Headers],0),FALSE) ->  | AF20: =VLOOKUP(Calendar[[#This Row],[Date]],UploadQuery[],MATCH("Elev Gain",UploadQuery[#Headers],0),FALSE) ->  | AG20: =VLOOKUP(Calendar[[#This Row],[Date]],UploadQuery[],MATCH("Distance",UploadQuery[#Headers],0),FALSE) ->  | AH20: =VLOOKUP(Calendar[[#This Row],[Date]],UploadQuery[],MATCH("Climber Index",UploadQuery[#Headers],0),FALSE) ->  | AI20: =VLOOKUP(Calendar[[#This Row],[Date]],UploadQuery[],MATCH("Cal/hour",UploadQuery[#Headers],0),FALSE) ->  | AJ20: =IF(YEAR(Calendar[[#This Row],[Date]])=YEAR(TodayDate),IF(WEEKNUM(Calendar[[#This Row],[Date]],21)=WEEKNUM(TodayDate,21),IFERROR(MAX(Calendar[[#This Row],[Actual Hrs]],Calendar[[#This Row],[Plan. Hrs]])+(2/24),Calendar[[#This Row],[Plan. Hrs]]+(2/24)),-1),-1) -> -1 | AK20: =SUM(Calendar[[#This Row],[Mon]:[Sun]]) -> 0 | AL20: =VLOOKUP(Calendar[[#This Row],[Date]],UploadQuery[],MATCH("Activity Time",UploadQuery[#Headers],0),FALSE) -> 
T21: =IF(ISBLANK(VLOOKUP(Calendar[[#This Row],[Date]],WeightTable[],2,FALSE))=TRUE,NA(),VLOOKUP(Calendar[[#This Row],[Date]],WeightTable[],IF(WeightUnit="lb",2,3),FALSE)) ->  | U21: =IF(ISBLANK(INDEX(TargetsTable[],MATCH(Calendar[[#This Row],[Date]],TargetsTable[Date],0),MATCH(Calendar[#Headers],TargetsTable[#Headers],0)))=TRUE,NA(),INDEX(TargetsTable[],MATCH(Calendar[[#This Row],[Date]],TargetsTable[Date],0),MATCH(Calendar[#Headers],TargetsTable[#Headers],0))) ->  | V21: =IF(ISBLANK(VLOOKUP(Calendar[[#This Row],[Date]],UploadQuery[],MATCH("Heart Rate",UploadQuery[#Headers],0),FALSE))=TRUE,NA(),VLOOKUP(Calendar[[#This Row],[Date]],UploadQuery[],MATCH("Heart Rate",UploadQuery[#Headers],0),FALSE)) ->  | W21: =IF(ISBLANK(INDEX(TargetsTable[],MATCH(Calendar[[#This Row],[Date]],TargetsTable[Date],0),MATCH(Calendar[#Headers],TargetsTable[#Headers],0)))=TRUE,NA(),INDEX(TargetsTable[],MATCH(Calendar[[#This Row],[Date]],TargetsTable[Date],0),MATCH(Calendar[#Headers],TargetsTable[#Headers],0))) ->  | X21: =Calendar[[#This Row],[Period]] -> 0 | Y21: =IFERROR(IF(Calendar[[#This Row],[Plan. Hrs]]<Calendar[[#This Row],[Actual Hrs]],0,Calendar[[#This Row],[Plan. Hrs]]-Calendar[[#This Row],[Actual Hrs]]),Calendar[[#This Row],[Plan. Hrs]]) -> 0 | Z21: =IFERROR(IF(Calendar[[#This Row],[Cal. Goal]]<Calendar[[#This Row],[Cal.]],0,Calendar[[#This Row],[Cal. Goal]]-Calendar[[#This Row],[Cal.]]),Calendar[[#This Row],[Cal. Goal]]) -> 0 | AD21: =BMIf(Calendar[[#This Row],[Weight]],ActualHeight) ->  | AE21: =VLOOKUP(Calendar[[#This Row],[Date]],UploadQuery[],MATCH("Speed",UploadQuery[#Headers],0),FALSE) ->  | AF21: =VLOOKUP(Calendar[[#This Row],[Date]],UploadQuery[],MATCH("Elev Gain",UploadQuery[#Headers],0),FALSE) ->  | AG21: =VLOOKUP(Calendar[[#This Row],[Date]],UploadQuery[],MATCH("Distance",UploadQuery[#Headers],0),FALSE) ->  | AH21: =VLOOKUP(Calendar[[#This Row],[Date]],UploadQuery[],MATCH("Climber Index",UploadQuery[#Headers],0),FALSE) ->  | AI21: =VLOOKUP(Calendar[[#This Row],[Date]],UploadQuery[],MATCH("Cal/hour",UploadQuery[#Headers],0),FALSE) ->  | AJ21: =IF(YEAR(Calendar[[#This Row],[Date]])=YEAR(TodayDate),IF(WEEKNUM(Calendar[[#This Row],[Date]],21)=WEEKNUM(TodayDate,21),IFERROR(MAX(Calendar[[#This Row],[Actual Hrs]],Calendar[[#This Row],[Plan. Hrs]])+(2/24),Calendar[[#This Row],[Plan. Hrs]]+(2/24)),-1),-1) -> -1 | AK21: =SUM(Calendar[[#This Row],[Mon]:[Sun]]) -> 0 | AL21: =VLOOKUP(Calendar[[#This Row],[Date]],UploadQuery[],MATCH("Activity Time",UploadQuery[#Headers],0),FALSE) -> 
T22: =IF(ISBLANK(VLOOKUP(Calendar[[#This Row],[Date]],WeightTable[],2,FALSE))=TRUE,NA(),VLOOKUP(Calendar[[#This Row],[Date]],WeightTable[],IF(WeightUnit="lb",2,3),FALSE)) ->  | U22: =IF(ISBLANK(INDEX(TargetsTable[],MATCH(Calendar[[#This Row],[Date]],TargetsTable[Date],0),MATCH(Calendar[#Headers],TargetsTable[#Headers],0)))=TRUE,NA(),INDEX(TargetsTable[],MATCH(Calendar[[#This Row],[Date]],TargetsTable[Date],0),MATCH(Calendar[#Headers],TargetsTable[#Headers],0))) ->  | V22: =IF(ISBLANK(VLOOKUP(Calendar[[#This Row],[Date]],UploadQuery[],MATCH("Heart Rate",UploadQuery[#Headers],0),FALSE))=TRUE,NA(),VLOOKUP(Calendar[[#This Row],[Date]],UploadQuery[],MATCH("Heart Rate",UploadQuery[#Headers],0),FALSE)) ->  | W22: =IF(ISBLANK(INDEX(TargetsTable[],MATCH(Calendar[[#This Row],[Date]],TargetsTable[Date],0),MATCH(Calendar[#Headers],TargetsTable[#Headers],0)))=TRUE,NA(),INDEX(TargetsTable[],MATCH(Calendar[[#This Row],[Date]],TargetsTable[Date],0),MATCH(Calendar[#Headers],TargetsTable[#Headers],0))) ->  | X22: =Calendar[[#This Row],[Period]] -> 0 | Y22: =IFERROR(IF(Calendar[[#This Row],[Plan. Hrs]]<Calendar[[#This Row],[Actual Hrs]],0,Calendar[[#This Row],[Plan. Hrs]]-Calendar[[#This Row],[Actual Hrs]]),Calendar[[#This Row],[Plan. Hrs]]) -> 0 | Z22: =IFERROR(IF(Calendar[[#This Row],[Cal. Goal]]<Calendar[[#This Row],[Cal.]],0,Calendar[[#This Row],[Cal. Goal]]-Calendar[[#This Row],[Cal.]]),Calendar[[#This Row],[Cal. Goal]]) -> 0 | AD22: =BMIf(Calendar[[#This Row],[Weight]],ActualHeight) ->  | AE22: =VLOOKUP(Calendar[[#This Row],[Date]],UploadQuery[],MATCH("Speed",UploadQuery[#Headers],0),FALSE) ->  | AF22: =VLOOKUP(Calendar[[#This Row],[Date]],UploadQuery[],MATCH("Elev Gain",UploadQuery[#Headers],0),FALSE) ->  | AG22: =VLOOKUP(Calendar[[#This Row],[Date]],UploadQuery[],MATCH("Distance",UploadQuery[#Headers],0),FALSE) ->  | AH22: =VLOOKUP(Calendar[[#This Row],[Date]],UploadQuery[],MATCH("Climber Index",UploadQuery[#Headers],0),FALSE) ->  | AI22: =VLOOKUP(Calendar[[#This Row],[Date]],UploadQuery[],MATCH("Cal/hour",UploadQuery[#Headers],0),FALSE) ->  | AJ22: =IF(YEAR(Calendar[[#This Row],[Date]])=YEAR(TodayDate),IF(WEEKNUM(Calendar[[#This Row],[Date]],21)=WEEKNUM(TodayDate,21),IFERROR(MAX(Calendar[[#This Row],[Actual Hrs]],Calendar[[#This Row],[Plan. Hrs]])+(2/24),Calendar[[#This Row],[Plan. Hrs]]+(2/24)),-1),-1) -> -1 | AK22: =SUM(Calendar[[#This Row],[Mon]:[Sun]]) -> 0 | AL22: =VLOOKUP(Calendar[[#This Row],[Date]],UploadQuery[],MATCH("Activity Time",UploadQuery[#Headers],0),FALSE) -> 
T23: =IF(ISBLANK(VLOOKUP(Calendar[[#This Row],[Date]],WeightTable[],2,FALSE))=TRUE,NA(),VLOOKUP(Calendar[[#This Row],[Date]],WeightTable[],IF(WeightUnit="lb",2,3),FALSE)) ->  | U23: =IF(ISBLANK(INDEX(TargetsTable[],MATCH(Calendar[[#This Row],[Date]],TargetsTable[Date],0),MATCH(Calendar[#Headers],TargetsTable[#Headers],0)))=TRUE,NA(),INDEX(TargetsTable[],MATCH(Calendar[[#This Row],[Date]],TargetsTable[Date],0),MATCH(Calendar[#Headers],TargetsTable[#Headers],0))) ->  | V23: =IF(ISBLANK(VLOOKUP(Calendar[[#This Row],[Date]],UploadQuery[],MATCH("Heart Rate",UploadQuery[#Headers],0),FALSE))=TRUE,NA(),VLOOKUP(Calendar[[#This Row],[Date]],UploadQuery[],MATCH("Heart Rate",UploadQuery[#Headers],0),FALSE)) ->  | W23: =IF(ISBLANK(INDEX(TargetsTable[],MATCH(Calendar[[#This Row],[Date]],TargetsTable[Date],0),MATCH(Calendar[#Headers],TargetsTable[#Headers],0)))=TRUE,NA(),INDEX(TargetsTable[],MATCH(Calendar[[#This Row],[Date]],TargetsTable[Date],0),MATCH(Calendar[#Headers],TargetsTable[#Headers],0))) ->  | X23: =Calendar[[#This Row],[Period]] -> 0 | Y23: =IFERROR(IF(Calendar[[#This Row],[Plan. Hrs]]<Calendar[[#This Row],[Actual Hrs]],0,Calendar[[#This Row],[Plan. Hrs]]-Calendar[[#This Row],[Actual Hrs]]),Calendar[[#This Row],[Plan. Hrs]]) -> 0 | Z23: =IFERROR(IF(Calendar[[#This Row],[Cal. Goal]]<Calendar[[#This Row],[Cal.]],0,Calendar[[#This Row],[Cal. Goal]]-Calendar[[#This Row],[Cal.]]),Calendar[[#This Row],[Cal. Goal]]) -> 0 | AD23: =BMIf(Calendar[[#This Row],[Weight]],ActualHeight) ->  | AE23: =VLOOKUP(Calendar[[#This Row],[Date]],UploadQuery[],MATCH("Speed",UploadQuery[#Headers],0),FALSE) ->  | AF23: =VLOOKUP(Calendar[[#This Row],[Date]],UploadQuery[],MATCH("Elev Gain",UploadQuery[#Headers],0),FALSE) ->  | AG23: =VLOOKUP(Calendar[[#This Row],[Date]],UploadQuery[],MATCH("Distance",UploadQuery[#Headers],0),FALSE) ->  | AH23: =VLOOKUP(Calendar[[#This Row],[Date]],UploadQuery[],MATCH("Climber Index",UploadQuery[#Headers],0),FALSE) ->  | AI23: =VLOOKUP(Calendar[[#This Row],[Date]],UploadQuery[],MATCH("Cal/hour",UploadQuery[#Headers],0),FALSE) ->  | AJ23: =IF(YEAR(Calendar[[#This Row],[Date]])=YEAR(TodayDate),IF(WEEKNUM(Calendar[[#This Row],[Date]],21)=WEEKNUM(TodayDate,21),IFERROR(MAX(Calendar[[#This Row],[Actual Hrs]],Calendar[[#This Row],[Plan. Hrs]])+(2/24),Calendar[[#This Row],[Plan. Hrs]]+(2/24)),-1),-1) -> -1 | AK23: =SUM(Calendar[[#This Row],[Mon]:[Sun]]) -> 0 | AL23: =VLOOKUP(Calendar[[#This Row],[Date]],UploadQuery[],MATCH("Activity Time",UploadQuery[#Headers],0),FALSE) -> 
T24: =IF(ISBLANK(VLOOKUP(Calendar[[#This Row],[Date]],WeightTable[],2,FALSE))=TRUE,NA(),VLOOKUP(Calendar[[#This Row],[Date]],WeightTable[],IF(WeightUnit="lb",2,3),FALSE)) ->  | U24: =IF(ISBLANK(INDEX(TargetsTable[],MATCH(Calendar[[#This Row],[Date]],TargetsTable[Date],0),MATCH(Calendar[#Headers],TargetsTable[#Headers],0)))=TRUE,NA(),INDEX(TargetsTable[],MATCH(Calendar[[#This Row],[Date]],TargetsTable[Date],0),MATCH(Calendar[#Headers],TargetsTable[#Headers],0))) ->  | V24: =IF(ISBLANK(VLOOKUP(Calendar[[#This Row],[Date]],UploadQuery[],MATCH("Heart Rate",UploadQuery[#Headers],0),FALSE))=TRUE,NA(),VLOOKUP(Calendar[[#This Row],[Date]],UploadQuery[],MATCH("Heart Rate",UploadQuery[#Headers],0),FALSE)) ->  | W24: =IF(ISBLANK(INDEX(TargetsTable[],MATCH(Calendar[[#This Row],[Date]],TargetsTable[Date],0),MATCH(Calendar[#Headers],TargetsTable[#Headers],0)))=TRUE,NA(),INDEX(TargetsTable[],MATCH(Calendar[[#This Row],[Date]],TargetsTable[Date],0),MATCH(Calendar[#Headers],TargetsTable[#Headers],0))) ->  | X24: =Calendar[[#This Row],[Period]] -> 0 | Y24: =IFERROR(IF(Calendar[[#This Row],[Plan. Hrs]]<Calendar[[#This Row],[Actual Hrs]],0,Calendar[[#This Row],[Plan. Hrs]]-Calendar[[#This Row],[Actual Hrs]]),Calendar[[#This Row],[Plan. Hrs]]) -> 0 | Z24: =IFERROR(IF(Calendar[[#This Row],[Cal. Goal]]<Calendar[[#This Row],[Cal.]],0,Calendar[[#This Row],[Cal. Goal]]-Calendar[[#This Row],[Cal.]]),Calendar[[#This Row],[Cal. Goal]]) -> 0 | AD24: =BMIf(Calendar[[#This Row],[Weight]],ActualHeight) ->  | AE24: =VLOOKUP(Calendar[[#This Row],[Date]],UploadQuery[],MATCH("Speed",UploadQuery[#Headers],0),FALSE) ->  | AF24: =VLOOKUP(Calendar[[#This Row],[Date]],UploadQuery[],MATCH("Elev Gain",UploadQuery[#Headers],0),FALSE) ->  | AG24: =VLOOKUP(Calendar[[#This Row],[Date]],UploadQuery[],MATCH("Distance",UploadQuery[#Headers],0),FALSE) ->  | AH24: =VLOOKUP(Calendar[[#This Row],[Date]],UploadQuery[],MATCH("Climber Index",UploadQuery[#Headers],0),FALSE) ->  | AI24: =VLOOKUP(Calendar[[#This Row],[Date]],UploadQuery[],MATCH("Cal/hour",UploadQuery[#Headers],0),FALSE) ->  | AJ24: =IF(YEAR(Calendar[[#This Row],[Date]])=YEAR(TodayDate),IF(WEEKNUM(Calendar[[#This Row],[Date]],21)=WEEKNUM(TodayDate,21),IFERROR(MAX(Calendar[[#This Row],[Actual Hrs]],Calendar[[#This Row],[Plan. Hrs]])+(2/24),Calendar[[#This Row],[Plan. Hrs]]+(2/24)),-1),-1) -> -1 | AK24: =SUM(Calendar[[#This Row],[Mon]:[Sun]]) -> 0 | AL24: =VLOOKUP(Calendar[[#This Row],[Date]],UploadQuery[],MATCH("Activity Time",UploadQuery[#Headers],0),FALSE) -> 
T25: =IF(ISBLANK(VLOOKUP(Calendar[[#This Row],[Date]],WeightTable[],2,FALSE))=TRUE,NA(),VLOOKUP(Calendar[[#This Row],[Date]],WeightTable[],IF(WeightUnit="lb",2,3),FALSE)) ->  | U25: =IF(ISBLANK(INDEX(TargetsTable[],MATCH(Calendar[[#This Row],[Date]],TargetsTable[Date],0),MATCH(Calendar[#Headers],TargetsTable[#Headers],0)))=TRUE,NA(),INDEX(TargetsTable[],MATCH(Calendar[[#This Row],[Date]],TargetsTable[Date],0),MATCH(Calendar[#Headers],TargetsTable[#Headers],0))) ->  | V25: =IF(ISBLANK(VLOOKUP(Calendar[[#This Row],[Date]],UploadQuery[],MATCH("Heart Rate",UploadQuery[#Headers],0),FALSE))=TRUE,NA(),VLOOKUP(Calendar[[#This Row],[Date]],UploadQuery[],MATCH("Heart Rate",UploadQuery[#Headers],0),FALSE)) ->  | W25: =IF(ISBLANK(INDEX(TargetsTable[],MATCH(Calendar[[#This Row],[Date]],TargetsTable[Date],0),MATCH(Calendar[#Headers],TargetsTable[#Headers],0)))=TRUE,NA(),INDEX(TargetsTable[],MATCH(Calendar[[#This Row],[Date]],TargetsTable[Date],0),MATCH(Calendar[#Headers],TargetsTable[#Headers],0))) ->  | X25: =Calendar[[#This Row],[Period]] -> 0 | Y25: =IFERROR(IF(Calendar[[#This Row],[Plan. Hrs]]<Calendar[[#This Row],[Actual Hrs]],0,Calendar[[#This Row],[Plan. Hrs]]-Calendar[[#This Row],[Actual Hrs]]),Calendar[[#This Row],[Plan. Hrs]]) -> 0 | Z25: =IFERROR(IF(Calendar[[#This Row],[Cal. Goal]]<Calendar[[#This Row],[Cal.]],0,Calendar[[#This Row],[Cal. Goal]]-Calendar[[#This Row],[Cal.]]),Calendar[[#This Row],[Cal. Goal]]) -> 0 | AD25: =BMIf(Calendar[[#This Row],[Weight]],ActualHeight) ->  | AE25: =VLOOKUP(Calendar[[#This Row],[Date]],UploadQuery[],MATCH("Speed",UploadQuery[#Headers],0),FALSE) ->  | AF25: =VLOOKUP(Calendar[[#This Row],[Date]],UploadQuery[],MATCH("Elev Gain",UploadQuery[#Headers],0),FALSE) ->  | AG25: =VLOOKUP(Calendar[[#This Row],[Date]],UploadQuery[],MATCH("Distance",UploadQuery[#Headers],0),FALSE) ->  | AH25: =VLOOKUP(Calendar[[#This Row],[Date]],UploadQuery[],MATCH("Climber Index",UploadQuery[#Headers],0),FALSE) ->  | AI25: =VLOOKUP(Calendar[[#This Row],[Date]],UploadQuery[],MATCH("Cal/hour",UploadQuery[#Headers],0),FALSE) ->  | AJ25: =IF(YEAR(Calendar[[#This Row],[Date]])=YEAR(TodayDate),IF(WEEKNUM(Calendar[[#This Row],[Date]],21)=WEEKNUM(TodayDate,21),IFERROR(MAX(Calendar[[#This Row],[Actual Hrs]],Calendar[[#This Row],[Plan. Hrs]])+(2/24),Calendar[[#This Row],[Plan. Hrs]]+(2/24)),-1),-1) -> -1 | AK25: =SUM(Calendar[[#This Row],[Mon]:[Sun]]) -> 0 | AL25: =VLOOKUP(Calendar[[#This Row],[Date]],UploadQuery[],MATCH("Activity Time",UploadQuery[#Headers],0),FALSE) -> 
T26: =IF(ISBLANK(VLOOKUP(Calendar[[#This Row],[Date]],WeightTable[],2,FALSE))=TRUE,NA(),VLOOKUP(Calendar[[#This Row],[Date]],WeightTable[],IF(WeightUnit="lb",2,3),FALSE)) ->  | U26: =IF(ISBLANK(INDEX(TargetsTable[],MATCH(Calendar[[#This Row],[Date]],TargetsTable[Date],0),MATCH(Calendar[#Headers],TargetsTable[#Headers],0)))=TRUE,NA(),INDEX(TargetsTable[],MATCH(Calendar[[#This Row],[Date]],TargetsTable[Date],0),MATCH(Calendar[#Headers],TargetsTable[#Headers],0))) ->  | V26: =IF(ISBLANK(VLOOKUP(Calendar[[#This Row],[Date]],UploadQuery[],MATCH("Heart Rate",UploadQuery[#Headers],0),FALSE))=TRUE,NA(),VLOOKUP(Calendar[[#This Row],[Date]],UploadQuery[],MATCH("Heart Rate",UploadQuery[#Headers],0),FALSE)) ->  | W26: =IF(ISBLANK(INDEX(TargetsTable[],MATCH(Calendar[[#This Row],[Date]],TargetsTable[Date],0),MATCH(Calendar[#Headers],TargetsTable[#Headers],0)))=TRUE,NA(),INDEX(TargetsTable[],MATCH(Calendar[[#This Row],[Date]],TargetsTable[Date],0),MATCH(Calendar[#Headers],TargetsTable[#Headers],0))) ->  | X26: =Calendar[[#This Row],[Period]] -> 0 | Y26: =IFERROR(IF(Calendar[[#This Row],[Plan. Hrs]]<Calendar[[#This Row],[Actual Hrs]],0,Calendar[[#This Row],[Plan. Hrs]]-Calendar[[#This Row],[Actual Hrs]]),Calendar[[#This Row],[Plan. Hrs]]) -> 0 | Z26: =IFERROR(IF(Calendar[[#This Row],[Cal. Goal]]<Calendar[[#This Row],[Cal.]],0,Calendar[[#This Row],[Cal. Goal]]-Calendar[[#This Row],[Cal.]]),Calendar[[#This Row],[Cal. Goal]]) -> 0 | AD26: =BMIf(Calendar[[#This Row],[Weight]],ActualHeight) ->  | AE26: =VLOOKUP(Calendar[[#This Row],[Date]],UploadQuery[],MATCH("Speed",UploadQuery[#Headers],0),FALSE) ->  | AF26: =VLOOKUP(Calendar[[#This Row],[Date]],UploadQuery[],MATCH("Elev Gain",UploadQuery[#Headers],0),FALSE) ->  | AG26: =VLOOKUP(Calendar[[#This Row],[Date]],UploadQuery[],MATCH("Distance",UploadQuery[#Headers],0),FALSE) ->  | AH26: =VLOOKUP(Calendar[[#This Row],[Date]],UploadQuery[],MATCH("Climber Index",UploadQuery[#Headers],0),FALSE) ->  | AI26: =VLOOKUP(Calendar[[#This Row],[Date]],UploadQuery[],MATCH("Cal/hour",UploadQuery[#Headers],0),FALSE) ->  | AJ26: =IF(YEAR(Calendar[[#This Row],[Date]])=YEAR(TodayDate),IF(WEEKNUM(Calendar[[#This Row],[Date]],21)=WEEKNUM(TodayDate,21),IFERROR(MAX(Calendar[[#This Row],[Actual Hrs]],Calendar[[#This Row],[Plan. Hrs]])+(2/24),Calendar[[#This Row],[Plan. Hrs]]+(2/24)),-1),-1) -> -1 | AK26: =SUM(Calendar[[#This Row],[Mon]:[Sun]]) -> 0 | AL26: =VLOOKUP(Calendar[[#This Row],[Date]],UploadQuery[],MATCH("Activity Time",UploadQuery[#Headers],0),FALSE) -> 
T27: =IF(ISBLANK(VLOOKUP(Calendar[[#This Row],[Date]],WeightTable[],2,FALSE))=TRUE,NA(),VLOOKUP(Calendar[[#This Row],[Date]],WeightTable[],IF(WeightUnit="lb",2,3),FALSE)) ->  | U27: =IF(ISBLANK(INDEX(TargetsTable[],MATCH(Calendar[[#This Row],[Date]],TargetsTable[Date],0),MATCH(Calendar[#Headers],TargetsTable[#Headers],0)))=TRUE,NA(),INDEX(TargetsTable[],MATCH(Calendar[[#This Row],[Date]],TargetsTable[Date],0),MATCH(Calendar[#Headers],TargetsTable[#Headers],0))) ->  | V27: =IF(ISBLANK(VLOOKUP(Calendar[[#This Row],[Date]],UploadQuery[],MATCH("Heart Rate",UploadQuery[#Headers],0),FALSE))=TRUE,NA(),VLOOKUP(Calendar[[#This Row],[Date]],UploadQuery[],MATCH("Heart Rate",UploadQuery[#Headers],0),FALSE)) ->  | W27: =IF(ISBLANK(INDEX(TargetsTable[],MATCH(Calendar[[#This Row],[Date]],TargetsTable[Date],0),MATCH(Calendar[#Headers],TargetsTable[#Headers],0)))=TRUE,NA(),INDEX(TargetsTable[],MATCH(Calendar[[#This Row],[Date]],TargetsTable[Date],0),MATCH(Calendar[#Headers],TargetsTable[#Headers],0))) ->  | X27: =Calendar[[#This Row],[Period]] -> 0 | Y27: =IFERROR(IF(Calendar[[#This Row],[Plan. Hrs]]<Calendar[[#This Row],[Actual Hrs]],0,Calendar[[#This Row],[Plan. Hrs]]-Calendar[[#This Row],[Actual Hrs]]),Calendar[[#This Row],[Plan. Hrs]]) -> 0 | Z27: =IFERROR(IF(Calendar[[#This Row],[Cal. Goal]]<Calendar[[#This Row],[Cal.]],0,Calendar[[#This Row],[Cal. Goal]]-Calendar[[#This Row],[Cal.]]),Calendar[[#This Row],[Cal. Goal]]) -> 0 | AD27: =BMIf(Calendar[[#This Row],[Weight]],ActualHeight) ->  | AE27: =VLOOKUP(Calendar[[#This Row],[Date]],UploadQuery[],MATCH("Speed",UploadQuery[#Headers],0),FALSE) ->  | AF27: =VLOOKUP(Calendar[[#This Row],[Date]],UploadQuery[],MATCH("Elev Gain",UploadQuery[#Headers],0),FALSE) ->  | AG27: =VLOOKUP(Calendar[[#This Row],[Date]],UploadQuery[],MATCH("Distance",UploadQuery[#Headers],0),FALSE) ->  | AH27: =VLOOKUP(Calendar[[#This Row],[Date]],UploadQuery[],MATCH("Climber Index",UploadQuery[#Headers],0),FALSE) ->  | AI27: =VLOOKUP(Calendar[[#This Row],[Date]],UploadQuery[],MATCH("Cal/hour",UploadQuery[#Headers],0),FALSE) ->  | AJ27: =IF(YEAR(Calendar[[#This Row],[Date]])=YEAR(TodayDate),IF(WEEKNUM(Calendar[[#This Row],[Date]],21)=WEEKNUM(TodayDate,21),IFERROR(MAX(Calendar[[#This Row],[Actual Hrs]],Calendar[[#This Row],[Plan. Hrs]])+(2/24),Calendar[[#This Row],[Plan. Hrs]]+(2/24)),-1),-1) -> -1 | AK27: =SUM(Calendar[[#This Row],[Mon]:[Sun]]) -> 0 | AL27: =VLOOKUP(Calendar[[#This Row],[Date]],UploadQuery[],MATCH("Activity Time",UploadQuery[#Headers],0),FALSE) -> 
T28: =IF(ISBLANK(VLOOKUP(Calendar[[#This Row],[Date]],WeightTable[],2,FALSE))=TRUE,NA(),VLOOKUP(Calendar[[#This Row],[Date]],WeightTable[],IF(WeightUnit="lb",2,3),FALSE)) ->  | U28: =IF(ISBLANK(INDEX(TargetsTable[],MATCH(Calendar[[#This Row],[Date]],TargetsTable[Date],0),MATCH(Calendar[#Headers],TargetsTable[#Headers],0)))=TRUE,NA(),INDEX(TargetsTable[],MATCH(Calendar[[#This Row],[Date]],TargetsTable[Date],0),MATCH(Calendar[#Headers],TargetsTable[#Headers],0))) ->  | V28: =IF(ISBLANK(VLOOKUP(Calendar[[#This Row],[Date]],UploadQuery[],MATCH("Heart Rate",UploadQuery[#Headers],0),FALSE))=TRUE,NA(),VLOOKUP(Calendar[[#This Row],[Date]],UploadQuery[],MATCH("Heart Rate",UploadQuery[#Headers],0),FALSE)) ->  | W28: =IF(ISBLANK(INDEX(TargetsTable[],MATCH(Calendar[[#This Row],[Date]],TargetsTable[Date],0),MATCH(Calendar[#Headers],TargetsTable[#Headers],0)))=TRUE,NA(),INDEX(TargetsTable[],MATCH(Calendar[[#This Row],[Date]],TargetsTable[Date],0),MATCH(Calendar[#Headers],TargetsTable[#Headers],0))) ->  | X28: =Calendar[[#This Row],[Period]] -> 0 | Y28: =IFERROR(IF(Calendar[[#This Row],[Plan. Hrs]]<Calendar[[#This Row],[Actual Hrs]],0,Calendar[[#This Row],[Plan. Hrs]]-Calendar[[#This Row],[Actual Hrs]]),Calendar[[#This Row],[Plan. Hrs]]) -> 0 | Z28: =IFERROR(IF(Calendar[[#This Row],[Cal. Goal]]<Calendar[[#This Row],[Cal.]],0,Calendar[[#This Row],[Cal. Goal]]-Calendar[[#This Row],[Cal.]]),Calendar[[#This Row],[Cal. Goal]]) -> 0 | AD28: =BMIf(Calendar[[#This Row],[Weight]],ActualHeight) ->  | AE28: =VLOOKUP(Calendar[[#This Row],[Date]],UploadQuery[],MATCH("Speed",UploadQuery[#Headers],0),FALSE) ->  | AF28: =VLOOKUP(Calendar[[#This Row],[Date]],UploadQuery[],MATCH("Elev Gain",UploadQuery[#Headers],0),FALSE) ->  | AG28: =VLOOKUP(Calendar[[#This Row],[Date]],UploadQuery[],MATCH("Distance",UploadQuery[#Headers],0),FALSE) ->  | AH28: =VLOOKUP(Calendar[[#This Row],[Date]],UploadQuery[],MATCH("Climber Index",UploadQuery[#Headers],0),FALSE) ->  | AI28: =VLOOKUP(Calendar[[#This Row],[Date]],UploadQuery[],MATCH("Cal/hour",UploadQuery[#Headers],0),FALSE) ->  | AJ28: =IF(YEAR(Calendar[[#This Row],[Date]])=YEAR(TodayDate),IF(WEEKNUM(Calendar[[#This Row],[Date]],21)=WEEKNUM(TodayDate,21),IFERROR(MAX(Calendar[[#This Row],[Actual Hrs]],Calendar[[#This Row],[Plan. Hrs]])+(2/24),Calendar[[#This Row],[Plan. Hrs]]+(2/24)),-1),-1) -> -1 | AK28: =SUM(Calendar[[#This Row],[Mon]:[Sun]]) -> 0 | AL28: =VLOOKUP(Calendar[[#This Row],[Date]],UploadQuery[],MATCH("Activity Time",UploadQuery[#Headers],0),FALSE) -> 
T29: =IF(ISBLANK(VLOOKUP(Calendar[[#This Row],[Date]],WeightTable[],2,FALSE))=TRUE,NA(),VLOOKUP(Calendar[[#This Row],[Date]],WeightTable[],IF(WeightUnit="lb",2,3),FALSE)) ->  | U29: =IF(ISBLANK(INDEX(TargetsTable[],MATCH(Calendar[[#This Row],[Date]],TargetsTable[Date],0),MATCH(Calendar[#Headers],TargetsTable[#Headers],0)))=TRUE,NA(),INDEX(TargetsTable[],MATCH(Calendar[[#This Row],[Date]],TargetsTable[Date],0),MATCH(Calendar[#Headers],TargetsTable[#Headers],0))) ->  | V29: =IF(ISBLANK(VLOOKUP(Calendar[[#This Row],[Date]],UploadQuery[],MATCH("Heart Rate",UploadQuery[#Headers],0),FALSE))=TRUE,NA(),VLOOKUP(Calendar[[#This Row],[Date]],UploadQuery[],MATCH("Heart Rate",UploadQuery[#Headers],0),FALSE)) ->  | W29: =IF(ISBLANK(INDEX(TargetsTable[],MATCH(Calendar[[#This Row],[Date]],TargetsTable[Date],0),MATCH(Calendar[#Headers],TargetsTable[#Headers],0)))=TRUE,NA(),INDEX(TargetsTable[],MATCH(Calendar[[#This Row],[Date]],TargetsTable[Date],0),MATCH(Calendar[#Headers],TargetsTable[#Headers],0))) ->  | X29: =Calendar[[#This Row],[Period]] -> 0 | Y29: =IFERROR(IF(Calendar[[#This Row],[Plan. Hrs]]<Calendar[[#This Row],[Actual Hrs]],0,Calendar[[#This Row],[Plan. Hrs]]-Calendar[[#This Row],[Actual Hrs]]),Calendar[[#This Row],[Plan. Hrs]]) -> 0 | Z29: =IFERROR(IF(Calendar[[#This Row],[Cal. Goal]]<Calendar[[#This Row],[Cal.]],0,Calendar[[#This Row],[Cal. Goal]]-Calendar[[#This Row],[Cal.]]),Calendar[[#This Row],[Cal. Goal]]) -> 0 | AD29: =BMIf(Calendar[[#This Row],[Weight]],ActualHeight) ->  | AE29: =VLOOKUP(Calendar[[#This Row],[Date]],UploadQuery[],MATCH("Speed",UploadQuery[#Headers],0),FALSE) ->  | AF29: =VLOOKUP(Calendar[[#This Row],[Date]],UploadQuery[],MATCH("Elev Gain",UploadQuery[#Headers],0),FALSE) ->  | AG29: =VLOOKUP(Calendar[[#This Row],[Date]],UploadQuery[],MATCH("Distance",UploadQuery[#Headers],0),FALSE) ->  | AH29: =VLOOKUP(Calendar[[#This Row],[Date]],UploadQuery[],MATCH("Climber Index",UploadQuery[#Headers],0),FALSE) ->  | AI29: =VLOOKUP(Calendar[[#This Row],[Date]],UploadQuery[],MATCH("Cal/hour",UploadQuery[#Headers],0),FALSE) ->  | AJ29: =IF(YEAR(Calendar[[#This Row],[Date]])=YEAR(TodayDate),IF(WEEKNUM(Calendar[[#This Row],[Date]],21)=WEEKNUM(TodayDate,21),IFERROR(MAX(Calendar[[#This Row],[Actual Hrs]],Calendar[[#This Row],[Plan. Hrs]])+(2/24),Calendar[[#This Row],[Plan. Hrs]]+(2/24)),-1),-1) -> -1 | AK29: =SUM(Calendar[[#This Row],[Mon]:[Sun]]) -> 0 | AL29: =VLOOKUP(Calendar[[#This Row],[Date]],UploadQuery[],MATCH("Activity Time",UploadQuery[#Headers],0),FALSE) -> 
T30: =IF(ISBLANK(VLOOKUP(Calendar[[#This Row],[Date]],WeightTable[],2,FALSE))=TRUE,NA(),VLOOKUP(Calendar[[#This Row],[Date]],WeightTable[],IF(WeightUnit="lb",2,3),FALSE)) ->  | U30: =IF(ISBLANK(INDEX(TargetsTable[],MATCH(Calendar[[#This Row],[Date]],TargetsTable[Date],0),MATCH(Calendar[#Headers],TargetsTable[#Headers],0)))=TRUE,NA(),INDEX(TargetsTable[],MATCH(Calendar[[#This Row],[Date]],TargetsTable[Date],0),MATCH(Calendar[#Headers],TargetsTable[#Headers],0))) ->  | V30: =IF(ISBLANK(VLOOKUP(Calendar[[#This Row],[Date]],UploadQuery[],MATCH("Heart Rate",UploadQuery[#Headers],0),FALSE))=TRUE,NA(),VLOOKUP(Calendar[[#This Row],[Date]],UploadQuery[],MATCH("Heart Rate",UploadQuery[#Headers],0),FALSE)) ->  | W30: =IF(ISBLANK(INDEX(TargetsTable[],MATCH(Calendar[[#This Row],[Date]],TargetsTable[Date],0),MATCH(Calendar[#Headers],TargetsTable[#Headers],0)))=TRUE,NA(),INDEX(TargetsTable[],MATCH(Calendar[[#This Row],[Date]],TargetsTable[Date],0),MATCH(Calendar[#Headers],TargetsTable[#Headers],0))) ->  | X30: =Calendar[[#This Row],[Period]] -> 0 | Y30: =IFERROR(IF(Calendar[[#This Row],[Plan. Hrs]]<Calendar[[#This Row],[Actual Hrs]],0,Calendar[[#This Row],[Plan. Hrs]]-Calendar[[#This Row],[Actual Hrs]]),Calendar[[#This Row],[Plan. Hrs]]) -> 0 | Z30: =IFERROR(IF(Calendar[[#This Row],[Cal. Goal]]<Calendar[[#This Row],[Cal.]],0,Calendar[[#This Row],[Cal. Goal]]-Calendar[[#This Row],[Cal.]]),Calendar[[#This Row],[Cal. Goal]]) -> 0 | AD30: =BMIf(Calendar[[#This Row],[Weight]],ActualHeight) ->  | AE30: =VLOOKUP(Calendar[[#This Row],[Date]],UploadQuery[],MATCH("Speed",UploadQuery[#Headers],0),FALSE) ->  | AF30: =VLOOKUP(Calendar[[#This Row],[Date]],UploadQuery[],MATCH("Elev Gain",UploadQuery[#Headers],0),FALSE) ->  | AG30: =VLOOKUP(Calendar[[#This Row],[Date]],UploadQuery[],MATCH("Distance",UploadQuery[#Headers],0),FALSE) ->  | AH30: =VLOOKUP(Calendar[[#This Row],[Date]],UploadQuery[],MATCH("Climber Index",UploadQuery[#Headers],0),FALSE) ->  | AI30: =VLOOKUP(Calendar[[#This Row],[Date]],UploadQuery[],MATCH("Cal/hour",UploadQuery[#Headers],0),FALSE) ->  | AJ30: =IF(YEAR(Calendar[[#This Row],[Date]])=YEAR(TodayDate),IF(WEEKNUM(Calendar[[#This Row],[Date]],21)=WEEKNUM(TodayDate,21),IFERROR(MAX(Calendar[[#This Row],[Actual Hrs]],Calendar[[#This Row],[Plan. Hrs]])+(2/24),Calendar[[#This Row],[Plan. Hrs]]+(2/24)),-1),-1) -> -1 | AK30: =SUM(Calendar[[#This Row],[Mon]:[Sun]]) -> 0 | AL30: =VLOOKUP(Calendar[[#This Row],[Date]],UploadQuery[],MATCH("Activity Time",UploadQuery[#Headers],0),FALSE) -> 
T31: =IF(ISBLANK(VLOOKUP(Calendar[[#This Row],[Date]],WeightTable[],2,FALSE))=TRUE,NA(),VLOOKUP(Calendar[[#This Row],[Date]],WeightTable[],IF(WeightUnit="lb",2,3),FALSE)) ->  | U31: =IF(ISBLANK(INDEX(TargetsTable[],MATCH(Calendar[[#This Row],[Date]],TargetsTable[Date],0),MATCH(Calendar[#Headers],TargetsTable[#Headers],0)))=TRUE,NA(),INDEX(TargetsTable[],MATCH(Calendar[[#This Row],[Date]],TargetsTable[Date],0),MATCH(Calendar[#Headers],TargetsTable[#Headers],0))) ->  | V31: =IF(ISBLANK(VLOOKUP(Calendar[[#This Row],[Date]],UploadQuery[],MATCH("Heart Rate",UploadQuery[#Headers],0),FALSE))=TRUE,NA(),VLOOKUP(Calendar[[#This Row],[Date]],UploadQuery[],MATCH("Heart Rate",UploadQuery[#Headers],0),FALSE)) ->  | W31: =IF(ISBLANK(INDEX(TargetsTable[],MATCH(Calendar[[#This Row],[Date]],TargetsTable[Date],0),MATCH(Calendar[#Headers],TargetsTable[#Headers],0)))=TRUE,NA(),INDEX(TargetsTable[],MATCH(Calendar[[#This Row],[Date]],TargetsTable[Date],0),MATCH(Calendar[#Headers],TargetsTable[#Headers],0))) ->  | X31: =Calendar[[#This Row],[Period]] -> 0 | Y31: =IFERROR(IF(Calendar[[#This Row],[Plan. Hrs]]<Calendar[[#This Row],[Actual Hrs]],0,Calendar[[#This Row],[Plan. Hrs]]-Calendar[[#This Row],[Actual Hrs]]),Calendar[[#This Row],[Plan. Hrs]]) -> 0 | Z31: =IFERROR(IF(Calendar[[#This Row],[Cal. Goal]]<Calendar[[#This Row],[Cal.]],0,Calendar[[#This Row],[Cal. Goal]]-Calendar[[#This Row],[Cal.]]),Calendar[[#This Row],[Cal. Goal]]) -> 0 | AD31: =BMIf(Calendar[[#This Row],[Weight]],ActualHeight) ->  | AE31: =VLOOKUP(Calendar[[#This Row],[Date]],UploadQuery[],MATCH("Speed",UploadQuery[#Headers],0),FALSE) ->  | AF31: =VLOOKUP(Calendar[[#This Row],[Date]],UploadQuery[],MATCH("Elev Gain",UploadQuery[#Headers],0),FALSE) ->  | AG31: =VLOOKUP(Calendar[[#This Row],[Date]],UploadQuery[],MATCH("Distance",UploadQuery[#Headers],0),FALSE) ->  | AH31: =VLOOKUP(Calendar[[#This Row],[Date]],UploadQuery[],MATCH("Climber Index",UploadQuery[#Headers],0),FALSE) ->  | AI31: =VLOOKUP(Calendar[[#This Row],[Date]],UploadQuery[],MATCH("Cal/hour",UploadQuery[#Headers],0),FALSE) ->  | AJ31: =IF(YEAR(Calendar[[#This Row],[Date]])=YEAR(TodayDate),IF(WEEKNUM(Calendar[[#This Row],[Date]],21)=WEEKNUM(TodayDate,21),IFERROR(MAX(Calendar[[#This Row],[Actual Hrs]],Calendar[[#This Row],[Plan. Hrs]])+(2/24),Calendar[[#This Row],[Plan. Hrs]]+(2/24)),-1),-1) -> -1 | AK31: =SUM(Calendar[[#This Row],[Mon]:[Sun]]) -> 0 | AL31: =VLOOKUP(Calendar[[#This Row],[Date]],UploadQuery[],MATCH("Activity Time",UploadQuery[#Headers],0),FALSE) -> 
T32: =IF(ISBLANK(VLOOKUP(Calendar[[#This Row],[Date]],WeightTable[],2,FALSE))=TRUE,NA(),VLOOKUP(Calendar[[#This Row],[Date]],WeightTable[],IF(WeightUnit="lb",2,3),FALSE)) ->  | U32: =IF(ISBLANK(INDEX(TargetsTable[],MATCH(Calendar[[#This Row],[Date]],TargetsTable[Date],0),MATCH(Calendar[#Headers],TargetsTable[#Headers],0)))=TRUE,NA(),INDEX(TargetsTable[],MATCH(Calendar[[#This Row],[Date]],TargetsTable[Date],0),MATCH(Calendar[#Headers],TargetsTable[#Headers],0))) ->  | V32: =IF(ISBLANK(VLOOKUP(Calendar[[#This Row],[Date]],UploadQuery[],MATCH("Heart Rate",UploadQuery[#Headers],0),FALSE))=TRUE,NA(),VLOOKUP(Calendar[[#This Row],[Date]],UploadQuery[],MATCH("Heart Rate",UploadQuery[#Headers],0),FALSE)) ->  | W32: =IF(ISBLANK(INDEX(TargetsTable[],MATCH(Calendar[[#This Row],[Date]],TargetsTable[Date],0),MATCH(Calendar[#Headers],TargetsTable[#Headers],0)))=TRUE,NA(),INDEX(TargetsTable[],MATCH(Calendar[[#This Row],[Date]],TargetsTable[Date],0),MATCH(Calendar[#Headers],TargetsTable[#Headers],0))) ->  | X32: =Calendar[[#This Row],[Period]] -> 0 | Y32: =IFERROR(IF(Calendar[[#This Row],[Plan. Hrs]]<Calendar[[#This Row],[Actual Hrs]],0,Calendar[[#This Row],[Plan. Hrs]]-Calendar[[#This Row],[Actual Hrs]]),Calendar[[#This Row],[Plan. Hrs]]) -> 0 | Z32: =IFERROR(IF(Calendar[[#This Row],[Cal. Goal]]<Calendar[[#This Row],[Cal.]],0,Calendar[[#This Row],[Cal. Goal]]-Calendar[[#This Row],[Cal.]]),Calendar[[#This Row],[Cal. Goal]]) -> 0 | AD32: =BMIf(Calendar[[#This Row],[Weight]],ActualHeight) ->  | AE32: =VLOOKUP(Calendar[[#This Row],[Date]],UploadQuery[],MATCH("Speed",UploadQuery[#Headers],0),FALSE) ->  | AF32: =VLOOKUP(Calendar[[#This Row],[Date]],UploadQuery[],MATCH("Elev Gain",UploadQuery[#Headers],0),FALSE) ->  | AG32: =VLOOKUP(Calendar[[#This Row],[Date]],UploadQuery[],MATCH("Distance",UploadQuery[#Headers],0),FALSE) ->  | AH32: =VLOOKUP(Calendar[[#This Row],[Date]],UploadQuery[],MATCH("Climber Index",UploadQuery[#Headers],0),FALSE) ->  | AI32: =VLOOKUP(Calendar[[#This Row],[Date]],UploadQuery[],MATCH("Cal/hour",UploadQuery[#Headers],0),FALSE) ->  | AJ32: =IF(YEAR(Calendar[[#This Row],[Date]])=YEAR(TodayDate),IF(WEEKNUM(Calendar[[#This Row],[Date]],21)=WEEKNUM(TodayDate,21),IFERROR(MAX(Calendar[[#This Row],[Actual Hrs]],Calendar[[#This Row],[Plan. Hrs]])+(2/24),Calendar[[#This Row],[Plan. Hrs]]+(2/24)),-1),-1) -> -1 | AK32: =SUM(Calendar[[#This Row],[Mon]:[Sun]]) -> 0 | AL32: =VLOOKUP(Calendar[[#This Row],[Date]],UploadQuery[],MATCH("Activity Time",UploadQuery[#Headers],0),FALSE) -> 
T33: =IF(ISBLANK(VLOOKUP(Calendar[[#This Row],[Date]],WeightTable[],2,FALSE))=TRUE,NA(),VLOOKUP(Calendar[[#This Row],[Date]],WeightTable[],IF(WeightUnit="lb",2,3),FALSE)) ->  | U33: =IF(ISBLANK(INDEX(TargetsTable[],MATCH(Calendar[[#This Row],[Date]],TargetsTable[Date],0),MATCH(Calendar[#Headers],TargetsTable[#Headers],0)))=TRUE,NA(),INDEX(TargetsTable[],MATCH(Calendar[[#This Row],[Date]],TargetsTable[Date],0),MATCH(Calendar[#Headers],TargetsTable[#Headers],0))) ->  | V33: =IF(ISBLANK(VLOOKUP(Calendar[[#This Row],[Date]],UploadQuery[],MATCH("Heart Rate",UploadQuery[#Headers],0),FALSE))=TRUE,NA(),VLOOKUP(Calendar[[#This Row],[Date]],UploadQuery[],MATCH("Heart Rate",UploadQuery[#Headers],0),FALSE)) ->  | W33: =IF(ISBLANK(INDEX(TargetsTable[],MATCH(Calendar[[#This Row],[Date]],TargetsTable[Date],0),MATCH(Calendar[#Headers],TargetsTable[#Headers],0)))=TRUE,NA(),INDEX(TargetsTable[],MATCH(Calendar[[#This Row],[Date]],TargetsTable[Date],0),MATCH(Calendar[#Headers],TargetsTable[#Headers],0))) ->  | X33: =Calendar[[#This Row],[Period]] -> 0 | Y33: =IFERROR(IF(Calendar[[#This Row],[Plan. Hrs]]<Calendar[[#This Row],[Actual Hrs]],0,Calendar[[#This Row],[Plan. Hrs]]-Calendar[[#This Row],[Actual Hrs]]),Calendar[[#This Row],[Plan. Hrs]]) -> 0 | Z33: =IFERROR(IF(Calendar[[#This Row],[Cal. Goal]]<Calendar[[#This Row],[Cal.]],0,Calendar[[#This Row],[Cal. Goal]]-Calendar[[#This Row],[Cal.]]),Calendar[[#This Row],[Cal. Goal]]) -> 0 | AD33: =BMIf(Calendar[[#This Row],[Weight]],ActualHeight) ->  | AE33: =VLOOKUP(Calendar[[#This Row],[Date]],UploadQuery[],MATCH("Speed",UploadQuery[#Headers],0),FALSE) ->  | AF33: =VLOOKUP(Calendar[[#This Row],[Date]],UploadQuery[],MATCH("Elev Gain",UploadQuery[#Headers],0),FALSE) ->  | AG33: =VLOOKUP(Calendar[[#This Row],[Date]],UploadQuery[],MATCH("Distance",UploadQuery[#Headers],0),FALSE) ->  | AH33: =VLOOKUP(Calendar[[#This Row],[Date]],UploadQuery[],MATCH("Climber Index",UploadQuery[#Headers],0),FALSE) ->  | AI33: =VLOOKUP(Calendar[[#This Row],[Date]],UploadQuery[],MATCH("Cal/hour",UploadQuery[#Headers],0),FALSE) ->  | AJ33: =IF(YEAR(Calendar[[#This Row],[Date]])=YEAR(TodayDate),IF(WEEKNUM(Calendar[[#This Row],[Date]],21)=WEEKNUM(TodayDate,21),IFERROR(MAX(Calendar[[#This Row],[Actual Hrs]],Calendar[[#This Row],[Plan. Hrs]])+(2/24),Calendar[[#This Row],[Plan. Hrs]]+(2/24)),-1),-1) -> -1 | AK33: =SUM(Calendar[[#This Row],[Mon]:[Sun]]) -> 0 | AL33: =VLOOKUP(Calendar[[#This Row],[Date]],UploadQuery[],MATCH("Activity Time",UploadQuery[#Headers],0),FALSE) -> 
T34: =IF(ISBLANK(VLOOKUP(Calendar[[#This Row],[Date]],WeightTable[],2,FALSE))=TRUE,NA(),VLOOKUP(Calendar[[#This Row],[Date]],WeightTable[],IF(WeightUnit="lb",2,3),FALSE)) ->  | U34: =IF(ISBLANK(INDEX(TargetsTable[],MATCH(Calendar[[#This Row],[Date]],TargetsTable[Date],0),MATCH(Calendar[#Headers],TargetsTable[#Headers],0)))=TRUE,NA(),INDEX(TargetsTable[],MATCH(Calendar[[#This Row],[Date]],TargetsTable[Date],0),MATCH(Calendar[#Headers],TargetsTable[#Headers],0))) ->  | V34: =IF(ISBLANK(VLOOKUP(Calendar[[#This Row],[Date]],UploadQuery[],MATCH("Heart Rate",UploadQuery[#Headers],0),FALSE))=TRUE,NA(),VLOOKUP(Calendar[[#This Row],[Date]],UploadQuery[],MATCH("Heart Rate",UploadQuery[#Headers],0),FALSE)) ->  | W34: =IF(ISBLANK(INDEX(TargetsTable[],MATCH(Calendar[[#This Row],[Date]],TargetsTable[Date],0),MATCH(Calendar[#Headers],TargetsTable[#Headers],0)))=TRUE,NA(),INDEX(TargetsTable[],MATCH(Calendar[[#This Row],[Date]],TargetsTable[Date],0),MATCH(Calendar[#Headers],TargetsTable[#Headers],0))) ->  | X34: =Calendar[[#This Row],[Period]] -> 0 | Y34: =IFERROR(IF(Calendar[[#This Row],[Plan. Hrs]]<Calendar[[#This Row],[Actual Hrs]],0,Calendar[[#This Row],[Plan. Hrs]]-Calendar[[#This Row],[Actual Hrs]]),Calendar[[#This Row],[Plan. Hrs]]) -> 0 | Z34: =IFERROR(IF(Calendar[[#This Row],[Cal. Goal]]<Calendar[[#This Row],[Cal.]],0,Calendar[[#This Row],[Cal. Goal]]-Calendar[[#This Row],[Cal.]]),Calendar[[#This Row],[Cal. Goal]]) -> 0 | AD34: =BMIf(Calendar[[#This Row],[Weight]],ActualHeight) ->  | AE34: =VLOOKUP(Calendar[[#This Row],[Date]],UploadQuery[],MATCH("Speed",UploadQuery[#Headers],0),FALSE) ->  | AF34: =VLOOKUP(Calendar[[#This Row],[Date]],UploadQuery[],MATCH("Elev Gain",UploadQuery[#Headers],0),FALSE) ->  | AG34: =VLOOKUP(Calendar[[#This Row],[Date]],UploadQuery[],MATCH("Distance",UploadQuery[#Headers],0),FALSE) ->  | AH34: =VLOOKUP(Calendar[[#This Row],[Date]],UploadQuery[],MATCH("Climber Index",UploadQuery[#Headers],0),FALSE) ->  | AI34: =VLOOKUP(Calendar[[#This Row],[Date]],UploadQuery[],MATCH("Cal/hour",UploadQuery[#Headers],0),FALSE) ->  | AJ34: =IF(YEAR(Calendar[[#This Row],[Date]])=YEAR(TodayDate),IF(WEEKNUM(Calendar[[#This Row],[Date]],21)=WEEKNUM(TodayDate,21),IFERROR(MAX(Calendar[[#This Row],[Actual Hrs]],Calendar[[#This Row],[Plan. Hrs]])+(2/24),Calendar[[#This Row],[Plan. Hrs]]+(2/24)),-1),-1) -> -1 | AK34: =SUM(Calendar[[#This Row],[Mon]:[Sun]]) -> 0 | AL34: =VLOOKUP(Calendar[[#This Row],[Date]],UploadQuery[],MATCH("Activity Time",UploadQuery[#Headers],0),FALSE) -> 
T35: =IF(ISBLANK(VLOOKUP(Calendar[[#This Row],[Date]],WeightTable[],2,FALSE))=TRUE,NA(),VLOOKUP(Calendar[[#This Row],[Date]],WeightTable[],IF(WeightUnit="lb",2,3),FALSE)) ->  | U35: =IF(ISBLANK(INDEX(TargetsTable[],MATCH(Calendar[[#This Row],[Date]],TargetsTable[Date],0),MATCH(Calendar[#Headers],TargetsTable[#Headers],0)))=TRUE,NA(),INDEX(TargetsTable[],MATCH(Calendar[[#This Row],[Date]],TargetsTable[Date],0),MATCH(Calendar[#Headers],TargetsTable[#Headers],0))) ->  | V35: =IF(ISBLANK(VLOOKUP(Calendar[[#This Row],[Date]],UploadQuery[],MATCH("Heart Rate",UploadQuery[#Headers],0),FALSE))=TRUE,NA(),VLOOKUP(Calendar[[#This Row],[Date]],UploadQuery[],MATCH("Heart Rate",UploadQuery[#Headers],0),FALSE)) ->  | W35: =IF(ISBLANK(INDEX(TargetsTable[],MATCH(Calendar[[#This Row],[Date]],TargetsTable[Date],0),MATCH(Calendar[#Headers],TargetsTable[#Headers],0)))=TRUE,NA(),INDEX(TargetsTable[],MATCH(Calendar[[#This Row],[Date]],TargetsTable[Date],0),MATCH(Calendar[#Headers],TargetsTable[#Headers],0))) ->  | X35: =Calendar[[#This Row],[Period]] -> 0 | Y35: =IFERROR(IF(Calendar[[#This Row],[Plan. Hrs]]<Calendar[[#This Row],[Actual Hrs]],0,Calendar[[#This Row],[Plan. Hrs]]-Calendar[[#This Row],[Actual Hrs]]),Calendar[[#This Row],[Plan. Hrs]]) -> 0 | Z35: =IFERROR(IF(Calendar[[#This Row],[Cal. Goal]]<Calendar[[#This Row],[Cal.]],0,Calendar[[#This Row],[Cal. Goal]]-Calendar[[#This Row],[Cal.]]),Calendar[[#This Row],[Cal. Goal]]) -> 0 | AD35: =BMIf(Calendar[[#This Row],[Weight]],ActualHeight) ->  | AE35: =VLOOKUP(Calendar[[#This Row],[Date]],UploadQuery[],MATCH("Speed",UploadQuery[#Headers],0),FALSE) ->  | AF35: =VLOOKUP(Calendar[[#This Row],[Date]],UploadQuery[],MATCH("Elev Gain",UploadQuery[#Headers],0),FALSE) ->  | AG35: =VLOOKUP(Calendar[[#This Row],[Date]],UploadQuery[],MATCH("Distance",UploadQuery[#Headers],0),FALSE) ->  | AH35: =VLOOKUP(Calendar[[#This Row],[Date]],UploadQuery[],MATCH("Climber Index",UploadQuery[#Headers],0),FALSE) ->  | AI35: =VLOOKUP(Calendar[[#This Row],[Date]],UploadQuery[],MATCH("Cal/hour",UploadQuery[#Headers],0),FALSE) ->  | AJ35: =IF(YEAR(Calendar[[#This Row],[Date]])=YEAR(TodayDate),IF(WEEKNUM(Calendar[[#This Row],[Date]],21)=WEEKNUM(TodayDate,21),IFERROR(MAX(Calendar[[#This Row],[Actual Hrs]],Calendar[[#This Row],[Plan. Hrs]])+(2/24),Calendar[[#This Row],[Plan. Hrs]]+(2/24)),-1),-1) -> -1 | AK35: =SUM(Calendar[[#This Row],[Mon]:[Sun]]) -> 0 | AL35: =VLOOKUP(Calendar[[#This Row],[Date]],UploadQuery[],MATCH("Activity Time",UploadQuery[#Headers],0),FALSE) -> 
T36: =IF(ISBLANK(VLOOKUP(Calendar[[#This Row],[Date]],WeightTable[],2,FALSE))=TRUE,NA(),VLOOKUP(Calendar[[#This Row],[Date]],WeightTable[],IF(WeightUnit="lb",2,3),FALSE)) ->  | U36: =IF(ISBLANK(INDEX(TargetsTable[],MATCH(Calendar[[#This Row],[Date]],TargetsTable[Date],0),MATCH(Calendar[#Headers],TargetsTable[#Headers],0)))=TRUE,NA(),INDEX(TargetsTable[],MATCH(Calendar[[#This Row],[Date]],TargetsTable[Date],0),MATCH(Calendar[#Headers],TargetsTable[#Headers],0))) ->  | V36: =IF(ISBLANK(VLOOKUP(Calendar[[#This Row],[Date]],UploadQuery[],MATCH("Heart Rate",UploadQuery[#Headers],0),FALSE))=TRUE,NA(),VLOOKUP(Calendar[[#This Row],[Date]],UploadQuery[],MATCH("Heart Rate",UploadQuery[#Headers],0),FALSE)) ->  | W36: =IF(ISBLANK(INDEX(TargetsTable[],MATCH(Calendar[[#This Row],[Date]],TargetsTable[Date],0),MATCH(Calendar[#Headers],TargetsTable[#Headers],0)))=TRUE,NA(),INDEX(TargetsTable[],MATCH(Calendar[[#This Row],[Date]],TargetsTable[Date],0),MATCH(Calendar[#Headers],TargetsTable[#Headers],0))) ->  | X36: =Calendar[[#This Row],[Period]] -> 0 | Y36: =IFERROR(IF(Calendar[[#This Row],[Plan. Hrs]]<Calendar[[#This Row],[Actual Hrs]],0,Calendar[[#This Row],[Plan. Hrs]]-Calendar[[#This Row],[Actual Hrs]]),Calendar[[#This Row],[Plan. Hrs]]) -> 0 | Z36: =IFERROR(IF(Calendar[[#This Row],[Cal. Goal]]<Calendar[[#This Row],[Cal.]],0,Calendar[[#This Row],[Cal. Goal]]-Calendar[[#This Row],[Cal.]]),Calendar[[#This Row],[Cal. Goal]]) -> 0 | AD36: =BMIf(Calendar[[#This Row],[Weight]],ActualHeight) ->  | AE36: =VLOOKUP(Calendar[[#This Row],[Date]],UploadQuery[],MATCH("Speed",UploadQuery[#Headers],0),FALSE) ->  | AF36: =VLOOKUP(Calendar[[#This Row],[Date]],UploadQuery[],MATCH("Elev Gain",UploadQuery[#Headers],0),FALSE) ->  | AG36: =VLOOKUP(Calendar[[#This Row],[Date]],UploadQuery[],MATCH("Distance",UploadQuery[#Headers],0),FALSE) ->  | AH36: =VLOOKUP(Calendar[[#This Row],[Date]],UploadQuery[],MATCH("Climber Index",UploadQuery[#Headers],0),FALSE) ->  | AI36: =VLOOKUP(Calendar[[#This Row],[Date]],UploadQuery[],MATCH("Cal/hour",UploadQuery[#Headers],0),FALSE) ->  | AJ36: =IF(YEAR(Calendar[[#This Row],[Date]])=YEAR(TodayDate),IF(WEEKNUM(Calendar[[#This Row],[Date]],21)=WEEKNUM(TodayDate,21),IFERROR(MAX(Calendar[[#This Row],[Actual Hrs]],Calendar[[#This Row],[Plan. Hrs]])+(2/24),Calendar[[#This Row],[Plan. Hrs]]+(2/24)),-1),-1) -> -1 | AK36: =SUM(Calendar[[#This Row],[Mon]:[Sun]]) -> 0 | AL36: =VLOOKUP(Calendar[[#This Row],[Date]],UploadQuery[],MATCH("Activity Time",UploadQuery[#Headers],0),FALSE) -> 

Sheet Targets
B1: STATrider / Targets
B3: Wk | C3: Date | D3: Period | E3: Cal. Goal | F3: Weight Goal | G3: HR Goal | H3: Power Goal
B4: 1
B5: 2
B6: 3
B7: 4
B8: 5
B9: 6
B10: 7
B11: 8
B12: 9
B13: 10
B14: 11
B15: 12
B16: 13
B17: 14
B18: 15
B19: 16
B20: 17
B21: 18
B22: 19
B23: 20
B24: 21

Sheet Weight
B1: STATrider / Weight
B3: Weight
B5: 189 | C5: lb
B7: Date
B9: 2022-03-21
B11: Date | C11: lb | D11: kg | E11: Wk

Sheet Load
B1: STATrider / Load Data
B5: Time Period | C5: Activities | D5: Distance | E5: Activity Time | F5: Activity Calories | G5: Elev Gain | H5: Speed | I5: Heart Rate | J5: Bike Cadence | K5: Power | L5: Climber Index | M5: Cal/hour | N5: Hrs/Activity | O5: Speed/HR | P5: Distance Unit | Q5: Time Unit | R5: Calories Unit | S5: Elevation Unit | T5: Speed Unit | U5: Heart Rate Unit | V5: Cadence Unit | W5: Power Unit | X5: WeightTable.lb | Y5: WeightTable.kg

Sheet Dashboard
B1: STATrider / Dashboard
V2: \
B3: =Season -> Season 2022 / 2022
B14: Events | D14: . | Q14: Current Week Plan (hrs)
D15: .
D16: . | Q16: Mon | R16: =IF(Actual_Week>0,IFERROR(IF(INDEX(INDIRECT("Calendar"),Actual_Week,MATCH(Q16,INDIRECT("Calendar[#Headers]"),0))=0,"Rest",INDEX(INDIRECT("Calendar"),Actual_Week,MATCH(Q16,INDIRECT("Calendar[#Headers]"),0))),""),"") ->  | S16: =IF(R16="Rest","",R16) -> 
D17: .
D18: . | Q18: Tue | R18: =IF(Actual_Week>0,IFERROR(IF(INDEX(INDIRECT("Calendar"),Actual_Week,MATCH(Q18,INDIRECT("Calendar[#Headers]"),0))=0,"Rest",INDEX(INDIRECT("Calendar"),Actual_Week,MATCH(Q18,INDIRECT("Calendar[#Headers]"),0))),""),"") ->  | S18: =IF(R18="Rest","",R18) -> 
D19: .
D20: . | Q20: Wed | R20: =IF(Actual_Week>0,IFERROR(IF(INDEX(INDIRECT("Calendar"),Actual_Week,MATCH(Q20,INDIRECT("Calendar[#Headers]"),0))=0,"Rest",INDEX(INDIRECT("Calendar"),Actual_Week,MATCH(Q20,INDIRECT("Calendar[#Headers]"),0))),""),"") ->  | S20: =IF(R20="Rest","",R20) -> 
D21: .
D22: . | Q22: Thu | R22: =IF(Actual_Week>0,IFERROR(IF(INDEX(INDIRECT("Calendar"),Actual_Week,MATCH(Q22,INDIRECT("Calendar[#Headers]"),0))=0,"Rest",INDEX(INDIRECT("Calendar"),Actual_Week,MATCH(Q22,INDIRECT("Calendar[#Headers]"),0))),""),"") ->  | S22: =IF(R22="Rest","",R22) -> 
D23: .
D24: . | Q24: Fri | R24: =IF(Actual_Week>0,IFERROR(IF(INDEX(INDIRECT("Calendar"),Actual_Week,MATCH(Q24,INDIRECT("Calendar[#Headers]"),0))=0,"Rest",INDEX(INDIRECT("Calendar"),Actual_Week,MATCH(Q24,INDIRECT("Calendar[#Headers]"),0))),""),"") ->  | S24: =IF(R24="Rest","",R24) -> 
D25: .
D26: . | Q26: Sat | R26: =IF(Actual_Week>0,IFERROR(IF(INDEX(INDIRECT("Calendar"),Actual_Week,MATCH(Q26,INDIRECT("Calendar[#Headers]"),0))=0,"Rest",INDEX(INDIRECT("Calendar"),Actual_Week,MATCH(Q26,INDIRECT("Calendar[#Headers]"),0))),""),"") ->  | S26: =IF(R26="Rest","",R26) -> 
D27: .
D28: . | Q28: Sun | R28: =IF(Actual_Week>0,IFERROR(IF(INDEX(INDIRECT("Calendar"),Actual_Week,MATCH(Q28,INDIRECT("Calendar[#Headers]"),0))=0,"Rest",INDEX(INDIRECT("Calendar"),Actual_Week,MATCH(Q28,INDIRECT("Calendar[#Headers]"),0))),""),"") ->  | S28: =IF(R28="Rest","",R28) -> 

Sheet Analytics
B1: STATrider / Analytics

Sheet PivotAnalytics4 (hidden)
A1: Row Labels | B1: Sum of Elev Gain
A2: (blank)
A3: Grand Total

Sheet Log (hidden)
A1: Step | B1: hh:mm:ss | C1: Description | D1: % of Overal Time
A2: Overall Time | B2: 1.157407678e-05 | D2: =SUM(D3:D14) -> 1
A3: TableCheck | B3: 0 | C3: Check if Target and Calendar table are correct | D3: =B3/TotalTime -> 0
A4: Solver | B4: 0 | C4: Solver | D4: 0
A5: Calendar | B5: 1.157407678e-05 | C5: Create Calendar | D5: 1
A6: PivotPlan | B6: 0 | C6: PivotPlan | D6: 0
A7: Conditional rules | B7: 0 | C7: ConditionalRulesTime - Period Colors | D7: =B7/TotalTime -> 0
A8: ChartPlan | B8: 0 | C8: ChartPlan | D8: =B8/TotalTime -> 0
U28: 0

Sheet Gauges (hidden)
A1: Weeks To Race Chart | M1: Charts Legends
A3: Weeks to Race Gap | B3: =Total_Weeks_Planned*0.45 -> 9.45 | C3: =Total_Weeks_Planned -> 21 | F3: Today Date | G3: 2022-05-23T23:26:59
A4: Actual Week | B4: =C4 ->  | C4: =IF(TodayDate<VLOOKUP(1,INDIRECT("Calendar"),2,FALSE),0,IF(TodayDate>LastWeek,Total_Weeks_Planned,D4)) ->  | D4: =MATCH(MAX(INDIRECT("Calendar[Today Week]")),INDIRECT("Calendar[Today Week]"),0) -> 1 | F4: Actual Height | G4: =RIDERHEIGHT(HeightPrimary,HeightSecondary,HeightUnit) -> 72
A5: =IF(B5>1,"Weeks to Race",IF(B5=1,"Week to Race","Race Week")) ->  | B5: =Total_Weeks_Planned-Actual_Week ->  | C5: =IF(Weeks_To_Race>0,Weeks_To_Race,_xlfn.UNICHAR(127937)) -> 
A7: BMI Chart
A8: Actual Weight | B8: =D8 ->  | C8: =WeightUnit -> lb | D8: =IFERROR(INDEX(INDIRECT("Calendar"),Actual_Week,MATCH("Weight",INDIRECT("Calendar[#Headers]"),0)),Last_Weight_Update) -> 
A9: Actual BMI | B9: =BMIf(Actual_Weight,ActualHeight) ->  | D9: =IF(C8="Kg",Actual_Weight/(ActualHeight^2),Actual_Weight/(ActualHeight^2)*703) -> 
A10: BMI Min | B10: =BMI_min -> 21 | F10: BMIGaugeGroup
A11: BMI Max | B11: =BMI_max -> 22.4 | F11: BMILegGroup
A12: Last Week Update | B12: =MATCH(2,INDEX(1/(INDIRECT("Calendar[Weight]")<>""),0)) -> 
A13: Weight on Last Week | B13: =INDEX(INDIRECT("Calendar"),Last_Weight_Week,MATCH("Weight",INDIRECT("Calendar[#Headers]"),0)) -> 
A15: BMI Doughnut | B15: Lower Limit | C15: Upper Limit | D15: BMI | E15: Goal
A16: Underweight | B16: 0 | C16: 18.4 | D16: =C16-B16 -> 18.4 | E16: =D16 -> 18.4
A17: Healthy weight | B17: 18.5 | D17: =(C19-B17)/2 -> 3.2 | E17: =B18-B17 -> 2.5
A18: Goal | B18: =F18 -> 21 | C18: =G18 -> 22.4 | E18: =C18-B18 -> 1.4 | F18: =IF(OR(BMI_min<18.5,BMI_min>24.9)=TRUE,18.5,BMI_min) -> 21 | G18: =IF(OR(BMI_max<18.5,BMI_max>24.9)=TRUE,18.5,BMI_max) -> 22.4
A19: Healthy weight | C19: 24.9 | D19: =D17 -> 3.2 | E19: =C19-C18 -> 2.5
A20: Overweight | B20: 25 | C20: 29.9 | D20: =C20-B20 -> 4.9 | E20: =D20 -> 4.9
A21: Obese | B21: 30 | C21: =B21+C16 -> 48.4 | D21: =D16-D20 -> 13.5 | E21: =D21 -> 13.5
A22: Blank | D22: =SUM(D16:D21)/4 -> 10.8 | E22: =SUM(E16:E21)/4 -> 10.8
A24: Radius | B24: 17.5 | F24: BMI | G24: Angle
A25: Angle (degrees) | B25: =C25 ->  | C25: =G30-G26 ->  | F25: =SUM($D$16:$D$22) -> 54 | G25: 360
A26: Cos | B26: =COS(RADIANS(B25)) ->  | F26: =IF(Actual_BMI<=0,0,IF(Actual_BMI>=43.2,43.2,Actual_BMI)) ->  | G26: =G25*F26/F25 -> 
A27: Sen | B27: =SIN(RADIANS(B25)) -> 
A28: dx | B28: =radius*B26 ->  | F28: =SUM($D$16:$D$22) -> 54 | G28: 360
A29: dy | B29: =B27*radius ->  | F29: =D16+D17 -> 21.6 | G29: =G28*F29/F28 -> 144
A30: BMI Gauge | B30: X | C30: Y | F30: Doughnut Start | G30: =IF(ActualBMILimit<=0,90+G29-2,IF(OR(ActualBMILimit<21.6,ActualBMILimit>=43.2),90+G29+3,90+G29)) -> 
A31: Center of circle | B31: 25 | C31: 25
A32: Circle point | B32: =B31+B28 ->  | C32: =C31+B29 -> 

Sheet Tables (hidden)
AQ1: Colors for chart series | AV1: Chart types | AZ1: State Table | BD1: API Table | BU1: Event Type Table | CA1: List | CC1: Units Table | CD1: Field units | CH1: Events Combobox Values | CK1: UCI calendar temp path file | CM1: lb | CO1: For Text Box use | CS1: List for Analytics ComboBoxes | CU1: Analytics Fields ComboBoxes Values | CX1: Analytics Chart and Calculation per field | DB1: For Text Box use | DD1: For Text Box use | DF1: For Queries - M code use | DH1: App status Saved Before Close
AQ3: Period | AR3: Rcode | AS3: Gcode | AT3: Bcode | AV3: Value | AW3: Name | AX3: Description | AZ3: State | BA3: Abbreviation | BB3: Country | BD3: Database | BE3: URL | BF3: Method | BG3: Header Type | BH3: Header Value | BI3: Event Type | BJ3: Parameter1 | BK3: Parameter2 | BL3: Parameter3 | BM3: Parameter4 | BN3: Parameter5 | BO3: Date | BP3: EndDate | BQ3: Query | BR3: Source | BS3: QueryName | BU3: Type | BV3: BikeReg | BW3: UCI | BX3: OLD-UCI | BY3: USA Cycling | CA3: Season | CC3: Field | CD3: Unit | CE3: Legend | CF3: Format | CH3: Box Name | CI3: Value | CK3: Path | CM3: Weight Units | CO3: =_xlfn.UNICHAR(9654) -> ▶ | CS3: UploadQueryFields | CU3: Box Name | CV3: Value | CX3: Field | CY3: Calculation | CZ3: ChartType | DB3: =_xlfn.UNICHAR(HEX2DEC("1F4C2")) -> 📂 | DF3: Value
AQ4: =INDEX(Setup!$B$16:$B$23,ROW()-3) -> Race | AR4: 0 | AS4: 255 | AT4: 0 | AV4: -4098 | AW4: xl3DArea | AX4: 3D Area | AZ4: ALABAMA | BA4: AL | BB4: UNITED STATES OF AMERICA | BD4: BikeReg | BE4: ="https://www.bikereg.com/api/" -> https://www.bikereg.com/api/ | BF4: Get | BI4: =VLOOKUP(EventType,EventTypeTable[],MATCH(APITable[[#This Row],[Database]],EventTypeTable[#Headers],0),FALSE) -> Road Race | BJ4: search? | BK4: states | BL4: eventtype | BM4: year | BO4: =IF(APITable[[#This Row],[Parameter4]]="year",SeasonSearch,"11%2F1%2F"&SeasonSearch-1) -> 2022 | BP4: ="10%2F31%2F"&SeasonSearch -> 10%2F31%2F2022 | BQ4: =IF(APITable[[#This Row],[Database]]="UCI",APITable[[#This Row],[Parameter1]]&"?"&APITable[[#This Row],[Parameter2]]&"="&APITable[[#This Row],[Event Type]]&"&"&APITable[[#This Row],[Parameter4]]&"="&APITable[[#This Row],[Date]],IF(APITable[[#This Row],[Database]]="BikeReg",APITable[[#This Row],[Parameter1]]&APITable[[#This Row],[Parameter2]]&"="&StateAbbreviation&"&"&APITable[[#This Row],[Parameter3]]&"="&APITable[[#This Row],[Event Type]]&"&"&APITable[[#This Row],[Parameter4]]&"="&APITable[[#This Row],[Date]],APITable[[#This Row],[Parameter1]]&APITable[[#This Row],[Event Type]]&"&"&APITable[[#This Row],[Parameter2]]&APITable[[#This Row],[Date]]&"&"&APITable[[#This Row],[Parameter3]]&APITable[[#This Row],[EndDate]]&"&"&APITable[[#This Row],[Parameter4]]&StateAbbreviation)) -> search?states=NY&eventtype=Road Race&year=2022 | BR4: =APITable[[#This Row],[URL]]&APITable[[#This Row],[Query]] -> https://www.bikereg.com/api/search?states=NY&eventtype=Road Race&year=2022 | BS4: BikeRegQuery | BU4: Road | BV4: Road Race | BW4: ROA | BX4: ROA | BY4: 19 | CA4: =YEAR(TodayDate)-2 -> 2020 | CC4: Activities | CD4: Activities | CE4: Activities / Week | CF4: #,### | CH4: APIBox | CI4: USA Cycling | CK4: C:\Users\jorge\AppData\Local\Temp\UCIMTB.xlsx | CM4: lb | CQ4: lb | CS4: Activities | CU4: Pivot1ComboBox1 | CV4: Activity Calories | CX4: Activities | CY4: -4157 | CZ4: 51 | DB4: =_xlfn.UNICHAR(HEX2DEC("2b61")) -> ⭡ | DD4: =UploadURL[Value] ->  | DH4: AppVariable | DI4: Status
AQ5: =INDEX(Setup!$B$16:$B$23,ROW()-3) -> Peak | AR5: 59 | AS5: 89 | AT5: 152 | AV5: 78 | AW5: xl3DAreaStacked | AX5: 3D Stacked Area | AZ5: ALASKA | BA5: AK | BB5: UNITED STATES OF AMERICA | BD5: USA Cycling | BE5: ="https://www.usacycling.org/API/events-search/" -> https://www.usacycling.org/API/events-search/ | BF5: Get | BI5: =VLOOKUP(EventType,EventTypeTable[],MATCH(APITable[[#This Row],[Database]],EventTypeTable[#Headers],0),FALSE) -> 19 | BJ5: ?name=&discipline= | BK5: sub_disciplines=&event_types=&special_calendars=&date_start= | BL5: date_end= | BM5: location=&state= | BN5: &city=&zip= | BO5: =IF(APITable[[#This Row],[Parameter4]]="year",SeasonSearch,"11%2F1%2F"&SeasonSearch-1) -> 11%2F1%2F2021 | BP5: ="10%2F31%2F"&SeasonSearch -> 10%2F31%2F2022 | BQ5: =IF(APITable[[#This Row],[Database]]="UCI",APITable[[#This Row],[Parameter1]]&"?"&APITable[[#This Row],[Parameter2]]&"="&APITable[[#This Row],[Event Type]]&"&"&APITable[[#This Row],[Parameter4]]&"="&APITable[[#This Row],[Date]],IF(APITable[[#This Row],[Database]]="BikeReg",APITable[[#This Row],[Parameter1]]&APITable[[#This Row],[Parameter2]]&"="&StateAbbreviation&"&"&APITable[[#This Row],[Parameter3]]&"="&APITable[[#This Row],[Event Type]]&"&"&APITable[[#This Row],[Parameter4]]&"="&APITable[[#This Row],[Date]],APITable[[#This Row],[Parameter1]]&APITable[[#This Row],[Event Type]]&"&"&APITable[[#This Row],[Parameter2]]&APITable[[#This Row],[Date]]&"&"&APITable[[#This Row],[Parameter3]]&APITable[[#This Row],[EndDate]]&"&"&APITable[[#This Row],[Parameter4]]&StateAbbreviation)) -> ?name=&discipline=19&sub_disciplines=&event_types=&special_calendars=&date_start=11%2F1%2F2021&date_end=10%2F31%2F2022&location=&state=NY | BR5: =APITable[[#This Row],[URL]]&APITable[[#This Row],[Query]] -> https://www.usacycling.org/API/events-search/?name=&discipline=19&sub_disciplines=&event_types=&special_calendars=&date_start=11%2F1%2F2021&date_end=10%2F31%2F2022&location=&state=NY | BS5: USACyclingQuery | BU5: Mountain bike | BV5: Off Road | BW5: MTB | BX5: MTB | BY5: 21 | CA5: =YEAR(TodayDate)-1 -> 2021 | CC5: Activity Calories | CD5: =IFERROR(INDEX(INDIRECT("UploadQuery[Calories Unit]"),MATCH(TRUE,INDEX((INDIRECT("UploadQuery[Calories Unit]")<>""),),0)),"C") -> C | CE5: Calories | CF5: #,### | CH5: EventTypeBox | CI5: Road | CM5: kg | CQ5: kg | CS5: Activity Calories | CU5: Pivot1ComboBox2 | CV5: Cal/hour | CX5: Activity Calories | CY5: -4157 | CZ5: 51 | DB5: =_xlfn.UNICHAR(HEX2DEC("2b63")) -> ⭣ | DH5: TargetsNeedRefresh | DI5: FALSE
AQ6: =INDEX(Setup!$B$16:$B$23,ROW()-3) -> Build II | AR6: 210 | AS6: 31 | AT6: 52 | AV6: 79 | AW6: xl3DAreaStacked100 | AX6: 100% Stacked Area | AZ6: ARIZONA | BA6: AZ | BB6: UNITED STATES OF AMERICA | BD6: UCI | BE6: ="https://www.uci.org/api/calendar/" -> https://www.uci.org/api/calendar/ | BF6: Get | BI6: =VLOOKUP(EventType,EventTypeTable[],MATCH(APITable[[#This Row],[Database]],EventTypeTable[#Headers],0),FALSE) -> ROA | BJ6: past | BK6: discipline | BM6: year | BO6: =IF(APITable[[#This Row],[Parameter4]]="year",SeasonSearch,"11%2F1%2F"&SeasonSearch-1) -> 2022 | BQ6: =IF(APITable[[#This Row],[Database]]="UCI",APITable[[#This Row],[Parameter1]]&"?"&APITable[[#This Row],[Parameter2]]&"="&APITable[[#This Row],[Event Type]]&"&"&APITable[[#This Row],[Parameter4]]&"="&APITable[[#This Row],[Date]],IF(APITable[[#This Row],[Database]]="BikeReg",APITable[[#This Row],[Parameter1]]&APITable[[#This Row],[Parameter2]]&"="&StateAbbreviation&"&"&APITable[[#This Row],[Parameter3]]&"="&APITable[[#This Row],[Event Type]]&"&"&APITable[[#This Row],[Parameter4]]&"="&APITable[[#This Row],[Date]],APITable[[#This Row],[Parameter1]]&APITable[[#This Row],[Event Type]]&"&"&APITable[[#This Row],[Parameter2]]&APITable[[#This Row],[Date]]&"&"&APITable[[#This Row],[Parameter3]]&APITable[[#This Row],[EndDate]]&"&"&APITable[[#This Row],[Parameter4]]&StateAbbreviation)) -> past?discipline=ROA&year=2022 | BR6: =APITable[[#This Row],[URL]]&APITable[[#This Row],[Query]] -> https://www.uci.org/api/calendar/past?discipline=ROA&year=2022 | BS6: UCIQuery | BU6: Cyclo-cross | BV6: Cyclocross | BW6: CRO | BX6: CRO | BY6: 23 | CA6: =YEAR(TodayDate) -> 2022 | CC6: Activity Time | CD6: Hrs | CE6: Hours / Week | CF6: [hh]:mm | CH6: StateBox | CI6: NEW YORK | CS6: Activity Time | CU6: Pivot2ComboBox1 | CV6: Speed | CX6: Activity Time | CY6: -4157 | CZ6: 51 | DH6: DashboardNeedRefresh | DI6: FALSE
AQ7: =INDEX(Setup!$B$16:$B$23,ROW()-3) -> Build I | AR7: 166 | AS7: 31 | AT7: 52 | AV7: 60 | AW7: xl3DBarClustered | AX7: 3D Clustered Bar | AZ7: ARKANSAS | BA7: AR | BB7: UNITED STATES OF AMERICA | BU7: Track | BV7: Track | BW7: PIS | BX7: PIS | BY7: 20 | CA7: =YEAR(TodayDate)+1 -> 2023 | CC7: Actual Hrs2 | CD7: Hrs | CE7: Hours / Week | CF7: [hh]:mm | CH7: StateAbbreviation | CI7: =VLOOKUP(StateSearch,StateTable[],2,FALSE) -> NY | CS7: Bike Cadence | CU7: Pivot2ComboBox2 | CV7: Cal/hour | CX7: Bike Cadence | CY7: -4106 | CZ7: 4 | DH7: CalendarChartNeedReset | DI7: TRUE
AQ8: =INDEX(Setup!$B$16:$B$23,ROW()-3) -> Base III | AR8: 255 | AS8: 170 | AT8: 100 | AV8: 61 | AW8: xl3DBarStacked | AX8: 3D Stacked Bar | AZ8: CALIFORNIA | BA8: CA | BB8: UNITED STATES OF AMERICA | CC8: Bike Cadence | CD8: =IFERROR(INDEX(INDIRECT("UploadQuery[Cadence Unit]"),MATCH(TRUE,INDEX((INDIRECT("UploadQuery[Cadence Unit]")<>""),),0)),"rpm") -> rpm | CE8: =IFERROR(INDEX(INDIRECT("UploadQuery[Cadence Unit]"),MATCH(TRUE,INDEX((INDIRECT("UploadQuery[Cadence Unit]")<>""),),0)),"rpm") -> rpm | CF8: 0 | CH8: SeasonBox | CI8: 2022 | CS8: Cal/hour | CU8: Pivot3ComboBox1 | CV8: Hrs/Activity | CX8: Cal/hour | CY8: -4106 | CZ8: 4 | DH8: TargetsChartNeedReset | DI8: TRUE
AQ9: =INDEX(Setup!$B$16:$B$23,ROW()-3) -> Base II | AR9: 255 | AS9: 128 | AT9: 80 | AV9: 62 | AW9: xl3DBarStacked100 | AX9: 3D 100% Stacked Bar | AZ9: COLORADO | BA9: CO | BB9: UNITED STATES OF AMERICA | CC9: Cadence | CD9: =IFERROR(INDEX(INDIRECT("UploadQuery[Cadence Unit]"),MATCH(TRUE,INDEX((INDIRECT("UploadQuery[Cadence Unit]")<>""),),0)),"rpm") -> rpm | CE9: =IFERROR(INDEX(INDIRECT("UploadQuery[Cadence Unit]"),MATCH(TRUE,INDEX((INDIRECT("UploadQuery[Cadence Unit]")<>""),),0)),"rpm") -> rpm | CF9: 0 | CS9: Climber Index | CU9: Pivot3ComboBox2 | CV9: Cal/hour | CX9: Climber Index | CY9: -4106 | CZ9: 4 | DH9: DashboardChartNeedReset | DI9: TRUE
AQ10: =INDEX(Setup!$B$16:$B$23,ROW()-3) -> Base I | AR10: 255 | AS10: 128 | AT10: 0 | AV10: -4100 | AW10: xl3DColumn | AX10: 3D Column | AZ10: CONNECTICUT | BA10: CT | BB10: UNITED STATES OF AMERICA | BD10: OLD-UCI | BE10: ="https://www.uci.org/web-interface/Base/ExportExcelCalendar" -> https://www.uci.org/web-interface/Base/ExportExcelCalendar | BF10: Post | BG10: Content-Type | BH10: application/x-www-form-urlencoded | BI10: =VLOOKUP(EventType,EventTypeTable[],MATCH(APITable[[#This Row],[Database]],EventTypeTable[#Headers],0),FALSE) ->  | BO10: =IF(APITable[[#This Row],[Parameter4]]="year",SeasonSearch,"11%2F1%2F"&SeasonSearch-1) ->  | BP10: ="10%2F31%2F"&SeasonSearch -> 10%2F31%2F2022 | BQ10: =IF(APITable[[#This Row],[Database]]="UCI",APITable[[#This Row],[Parameter1]]&"?"&APITable[[#This Row],[Parameter2]]&"="&APITable[[#This Row],[Event Type]]&"&"&APITable[[#This Row],[Parameter4]]&"="&APITable[[#This Row],[Date]],IF(APITable[[#This Row],[Database]]="BikeReg",APITable[[#This Row],[Parameter1]]&APITable[[#This Row],[Parameter2]]&"="&StateAbbreviation&"&"&APITable[[#This Row],[Parameter3]]&"="&APITable[[#This Row],[Event Type]]&"&"&APITable[[#This Row],[Parameter4]]&"="&APITable[[#This Row],[Date]],APITable[[#This Row],[Parameter1]]&APITable[[#This Row],[Event Type]]&"&"&APITable[[#This Row],[Parameter2]]&APITable[[#This Row],[Date]]&"&"&APITable[[#This Row],[Parameter3]]&APITable[[#This Row],[EndDate]]&"&"&APITable[[#This Row],[Parameter4]]&StateAbbreviation&APITable[[#This Row],[Parameter5]])) ->  | BR10: =APITable[[#This Row],[URL]]&APITable[[#This Row],[Query]] ->  | BS10: UCIQuery | CC10: Cal. | CD10: =IFERROR(INDEX(INDIRECT("UploadQuery[Calories Unit]"),MATCH(TRUE,INDEX((INDIRECT("UploadQuery[Calories Unit]")<>""),),0)),"C") -> C | CE10: Calories | CF10: #,### | CS10: Distance | CU10: Pivot4ComboBox1 | CV10: Elev Gain | CX10: Distance | CY10: -4157 | CZ10: 51 | DH10: PivotAnalyticsNeedRefresh | DI10: TRUE
AQ11: =INDEX(Setup!$B$16:$B$23,ROW()-3) -> Prep. | AR11: 255 | AS11: 200 | AT11: 0 | AV11: 54 | AW11: xl3DColumnClustered | AX11: 3D Clustered Column | AZ11: DELAWARE | BA11: DE | BB11: UNITED STATES OF AMERICA | CC11: Cal. Goal | CD11: =IFERROR(INDEX(INDIRECT("UploadQuery[Calories Unit]"),MATCH(TRUE,INDEX((INDIRECT("UploadQuery[Calories Unit]")<>""),),0)),"C") -> C | CE11: Calories | CF11: #,### | CS11: Elev Gain | CU11: Pivot4ComboBox2 | CX11: Elev Gain | CY11: -4157 | CZ11: 1 | DH11: PivotPlanNeedRefresh | DI11: TRUE
AQ12: Sum of Cal. | AR12: 255 | AS12: 128 | AT12: 0 | AV12: 55 | AW12: xl3DColumnStacked | AX12: 3D Stacked Column | AZ12: FLORIDA | BA12: FL | BB12: UNITED STATES OF AMERICA | CC12: Cal. Goal Chart | CD12: =IFERROR(INDEX(INDIRECT("UploadQuery[Calories Unit]"),MATCH(TRUE,INDEX((INDIRECT("UploadQuery[Calories Unit]")<>""),),0)),"C") -> C | CE12: Calories | CF12: #,### | CS12: Heart Rate | CX12: Heart Rate | CY12: -4106 | CZ12: 4 | DH12: WeightDashboardChartNeedReset | DI12: FALSE
AQ13: Sum of Cal. Goal Chart | AR13: 166 | AS13: 166 | AT13: 166 | AV13: 56 | AW13: xl3DColumnStacked100 | AX13: 3D 100% Stacked Column | AZ13: GEORGIA | BA13: GA | BB13: UNITED STATES OF AMERICA | CC13: Cal/hour | CD13: =UnitsTable[[#This Row],[Field]] -> Cal/hour | CE13: =UnitsTable[[#This Row],[Field]] -> Cal/hour | CF13: 0 | CS13: Hrs/Activity | CX13: Hrs/Activity | CY13: -4106 | CZ13: 4 | DH13: WeightTargetChartNeedReset | DI13: FALSE
AQ14: Sum of Weight | AR14: 0 | AS14: 255 | AT14: 0 | AV14: -4101 | AW14: xl3DLine | AX14: 3D Line | AZ14: HAWAII | BA14: HI | BB14: UNITED STATES OF AMERICA | CC14: Climber Index | CD14: =UnitsTable[[#This Row],[Field]] -> Climber Index | CE14: =UnitsTable[[#This Row],[Field]] -> Climber Index | CF14: 0 | CS14: Power | CX14: Power | CY14: -4106 | CZ14: 4 | DH14: FavEventsQueryNeedRefresh | DI14: FALSE
AQ15: Sum of Weight Goal | AR15: 166 | AS15: 166 | AT15: 166 | AV15: -4102 | AW15: xl3DPie | AX15: 3D Pie | AZ15: IDAHO | BA15: ID | BB15: UNITED STATES OF AMERICA | CC15: Distance | CD15: =IFERROR(INDEX(INDIRECT("UploadQuery[Distance Unit]"),MATCH(TRUE,INDEX((INDIRECT("UploadQuery[Distance Unit]")<>""),),0)),"mi") -> mi | CE15: =IFERROR(INDEX(INDIRECT("UploadQuery[Distance Unit]"),MATCH(TRUE,INDEX((INDIRECT("UploadQuery[Distance Unit]")<>""),),0)),"mi") -> mi | CF15: #,### | CS15: Speed | CX15: Speed | CY15: -4106 | CZ15: 4 | DH15: EventsDashboardQueryNeedRefresh | DI15: TRUE
AQ16: Sum of HR | AR16: 0 | AS16: 0 | AT16: 255 | AV16: 70 | AW16: xl3DPieExploded | AX16: Exploded 3D Pie | AZ16: ILLINOIS | BA16: IL | BB16: UNITED STATES OF AMERICA | CC16: Elev Gain | CD16: =IFERROR(INDEX(INDIRECT("UploadQuery[Elevation Unit]"),MATCH(TRUE,INDEX((INDIRECT("UploadQuery[Elevation Unit]")<>""),),0)),"ft") -> ft | CE16: =IFERROR(INDEX(INDIRECT("UploadQuery[Elevation Unit]"),MATCH(TRUE,INDEX((INDIRECT("UploadQuery[Elevation Unit]")<>""),),0)),"ft") -> ft | CF16: #,###
AQ17: Sum of Speed | AR17: 255 | AS17: 0 | AT17: 0 | AV17: 1 | AW17: xlArea | AX17: Area | AZ17: INDIANA | BA17: IN | BB17: UNITED STATES OF AMERICA | CC17: Elevation | CD17: =IFERROR(INDEX(INDIRECT("UploadQuery[Elevation Unit]"),MATCH(TRUE,INDEX((INDIRECT("UploadQuery[Elevation Unit]")<>""),),0)),"ft") -> ft | CE17: =IFERROR(INDEX(INDIRECT("UploadQuery[Elevation Unit]"),MATCH(TRUE,INDEX((INDIRECT("UploadQuery[Elevation Unit]")<>""),),0)),"ft") -> ft | CF17: #,###
AQ18: Sum of Climber Index | AR18: 225 | AS18: 104 | AT18: 75 | AV18: 76 | AW18: xlAreaStacked | AX18: Stacked Area | AZ18: IOWA | BA18: IA | BB18: UNITED STATES OF AMERICA | CC18: Heart Rate | CD18: =IFERROR(INDEX(INDIRECT("UploadQuery[Heart Rate Unit]"),MATCH(TRUE,INDEX((INDIRECT("UploadQuery[Heart Rate Unit]")<>""),),0)),"bpm") -> bpm | CE18: =IFERROR(INDEX(INDIRECT("UploadQuery[Heart Rate Unit]"),MATCH(TRUE,INDEX((INDIRECT("UploadQuery[Heart Rate Unit]")<>""),),0)),"bpm") -> bpm | CF18: 0
AQ19: Sum of Cal/hour | AR19: 255 | AS19: 255 | AT19: 0 | AV19: 77 | AW19: xlAreaStacked100 | AX19: 100% Stacked Area | AZ19: KANSAS | BA19: KS | BB19: UNITED STATES OF AMERICA | CC19: HR | CD19: =IFERROR(INDEX(INDIRECT("UploadQuery[Heart Rate Unit]"),MATCH(TRUE,INDEX((INDIRECT("UploadQuery[Heart Rate Unit]")<>""),),0)),"bpm") -> bpm | CE19: =IFERROR(INDEX(INDIRECT("UploadQuery[Heart Rate Unit]"),MATCH(TRUE,INDEX((INDIRECT("UploadQuery[Heart Rate Unit]")<>""),),0)),"bpm") -> bpm | CF19: 0
AQ20: Sum of PlanH Chart | AR20: 166 | AS20: 166 | AT20: 166 | AV20: 57 | AW20: xlBarClustered | AX20: Clustered Bar | AZ20: KENTUCKY | BA20: KY | BB20: UNITED STATES OF AMERICA | CC20: HR Goal | CD20: =IFERROR(INDEX(INDIRECT("UploadQuery[Heart Rate Unit]"),MATCH(TRUE,INDEX((INDIRECT("UploadQuery[Heart Rate Unit]")<>""),),0)),"bpm") -> bpm | CE20: =IFERROR(INDEX(INDIRECT("UploadQuery[Heart Rate Unit]"),MATCH(TRUE,INDEX((INDIRECT("UploadQuery[Heart Rate Unit]")<>""),),0)),"bpm") -> bpm | CF20: 0
AQ21: Sum of Actual Hrs | AR21: 125 | AS21: 255 | AT21: 125 | AV21: 71 | AW21: xlBarOfPie | AX21: Bar of Pie | AZ21: LOUISIANA | BA21: LA | BB21: UNITED STATES OF AMERICA | CC21: Hrs/Activity | CD21: Hrs | CE21: Hours / Activity | CF21: [hh]:mm
AQ22: Sum of Today Week | AV22: 58 | AW22: xlBarStacked | AX22: Stacked Bar | AZ22: MAINE | BA22: ME | BB22: UNITED STATES OF AMERICA | CC22: =WeightUnit -> lb | CD22: =UnitsTable[[#This Row],[Field]] -> lb | CE22: =UnitsTable[[#This Row],[Unit]] -> lb | CF22: ="0.0" -> 0.0
AQ23: Goal | AR23: 166 | AS23: 166 | AT23: 166 | AV23: 59 | AW23: xlBarStacked100 | AX23: 100% Stacked Bar | AZ23: MARYLAND | BA23: MD | BB23: UNITED STATES OF AMERICA | CC23: Plan. Hrs Chart | CD23: Hrs | CE23: Hours / Week | CF23: [hh]:mm
AQ24: Sum of HR Goal | AR24: 166 | AS24: 166 | AT24: 166 | AV24: 15 | AW24: xlBubble | AX24: Bubble | AZ24: MASSACHUSETTS | BA24: MA | BB24: UNITED STATES OF AMERICA | CC24: Plan. Hrs2 | CD24: Hrs | CE24: Hours / Week | CF24: [hh]:mm
AQ25: Sum of Power | AR25: 255 | AS25: 0 | AT25: 0 | AV25: 87 | AW25: xlBubble3DEffect | AX25: Bubble with 3D effects | AZ25: MICHIGAN | BA25: MI | BB25: UNITED STATES OF AMERICA | CC25: Power | CD25: =IFERROR(INDEX(INDIRECT("UploadQuery[Power Unit]"),MATCH(TRUE,INDEX((INDIRECT("UploadQuery[Power Unit]")<>""),),0)),"W") -> W | CE25: Watts | CF25: #,###
AQ26: Sum of Power Goal | AR26: 166 | AS26: 166 | AT26: 166 | AV26: 51 | AW26: xlColumnClustered | AX26: Clustered Column | AZ26: MINNESOTA | BA26: MN | BB26: UNITED STATES OF AMERICA | CC26: Power Goal | CD26: =IFERROR(INDEX(INDIRECT("UploadQuery[Power Unit]"),MATCH(TRUE,INDEX((INDIRECT("UploadQuery[Power Unit]")<>""),),0)),"W") -> W | CE26: Watts | CF26: #,###
AQ27: Cal. | AR27: 255 | AS27: 128 | AT27: 0 | AV27: 52 | AW27: xlColumnStacked | AX27: Stacked Column | AZ27: MISSISSIPPI | BA27: MS | BB27: UNITED STATES OF AMERICA | CC27: Speed | CD27: =IFERROR(INDEX(INDIRECT("UploadQuery[Speed Unit]"),MATCH(TRUE,INDEX((INDIRECT("UploadQuery[Speed Unit]")<>""),),0)),"mph") -> mph | CE27: =IFERROR(INDEX(INDIRECT("UploadQuery[Speed Unit]"),MATCH(TRUE,INDEX((INDIRECT("UploadQuery[Speed Unit]")<>""),),0)),"mph") -> mph | CF27: ="0.0" -> 0.0
AQ28: Weight | AR28: 0 | AS28: 255 | AT28: 0 | AV28: 53 | AW28: xlColumnStacked100 | AX28: 100% Stacked Column | AZ28: MISSOURI | BA28: MO | BB28: UNITED STATES OF AMERICA | CC28: Today Week | CD28: Hrs | CE28: Hours / Week | CF28: [hh]:mm
AQ29: HR | AR29: 0 | AS29: 0 | AT29: 255 | AV29: 102 | AW29: xlConeBarClustered | AX29: Clustered Cone Bar | AZ29: MONTANA | BA29: MT | BB29: UNITED STATES OF AMERICA | CC29: Weight | CD29: =WeightUnit -> lb | CE29: =WeightUnit -> lb | CF29: ="0.0" -> 0.0
AQ30: Speed | AR30: 255 | AS30: 0 | AT30: 0 | AV30: 103 | AW30: xlConeBarStacked | AX30: Stacked Cone Bar | AZ30: NEBRASKA | BA30: NE | BB30: UNITED STATES OF AMERICA | CC30: Weight Goal | CD30: =WeightUnit -> lb | CE30: =WeightUnit -> lb | CF30: ="0.0" -> 0.0
AQ31: Climber Index | AR31: 225 | AS31: 104 | AT31: 75 | AV31: 104 | AW31: xlConeBarStacked100 | AX31: 100% Stacked Cone Bar | AZ31: NEVADA | BA31: NV | BB31: UNITED STATES OF AMERICA
AQ32: Cal/hour | AR32: 255 | AS32: 255 | AT32: 0 | AV32: 105 | AW32: xlConeCol | AX32: 3D Cone Column | AZ32: NEW HAMPSHIRE | BA32: NH | BB32: UNITED STATES OF AMERICA
AQ33: PlanH Chart | AR33: 166 | AS33: 166 | AT33: 166 | AV33: 99 | AW33: xlConeColClustered | AX33: Clustered Cone Column | AZ33: NEW JERSEY | BA33: NJ | BB33: UNITED STATES OF AMERICA
AQ34: Activities | AV34: 100 | AW34: xlConeColStacked | AX34: Stacked Cone Column | AZ34: NEW MEXICO | BA34: NM | BB34: UNITED STATES OF AMERICA
AQ35: Activity Time | AV35: 101 | AW35: xlConeColStacked100 | AX35: 100% Stacked Cone Column | AZ35: NEW YORK | BA35: NY | BB35: UNITED STATES OF AMERICA
AQ36: Actual Hrs | AV36: 95 | AW36: xlCylinderBarClustered | AX36: Clustered Cylinder Bar | AZ36: NORTH CAROLINA | BA36: NC | BB36: UNITED STATES OF AMERICA
AQ37: Bike Cadence | AV37: 96 | AW37: xlCylinderBarStacked | AX37: Stacked Cylinder Bar | AZ37: NORTH DAKOTA | BA37: ND | BB37: UNITED STATES OF AMERICA
AQ38: Goal | AR38: 166 | AS38: 166 | AT38: 166 | AV38: 97 | AW38: xlCylinderBarStacked100 | AX38: 100% Stacked Cylinder Bar | AZ38: OHIO | BA38: OH | BB38: UNITED STATES OF AMERICA
AQ39: Climber Index | AV39: 98 | AW39: xlCylinderCol | AX39: 3D Cylinder Column | AZ39: OKLAHOMA | BA39: OK | BB39: UNITED STATES OF AMERICA
AQ40: Power | AR40: 255 | AS40: 0 | AT40: 0 | AV40: 92 | AW40: xlCylinderColClustered | AX40: Clustered Cone Column | AZ40: OREGON | BA40: OR | BB40: UNITED STATES OF AMERICA
AQ41: Distance | AV41: 93 | AW41: xlCylinderColStacked | AX41: Stacked Cone Column | AZ41: PENNSYLVANIA | BA41: PA | BB41: UNITED STATES OF AMERICA
AQ42: Hrs/Activity | AV42: 94 | AW42: xlCylinderColStacked100 | AX42: 100% Stacked Cylinder Column | AZ42: RHODE ISLAND | BA42: RI | BB42: UNITED STATES OF AMERICA
AQ43: Elev Gain | AV43: -4120 | AW43: xlDoughnut | AX43: Doughnut | AZ43: SOUTH CAROLINA | BA43: SC | BB43: UNITED STATES OF AMERICA
AV44: 80 | AW44: xlDoughnutExploded | AX44: Exploded Doughnut | AZ44: SOUTH DAKOTA | BA44: SD | BB44: UNITED STATES OF AMERICA
AV45: 4 | AW45: xlLine | AX45: Line | AZ45: TENNESSEE | BA45: TN | BB45: UNITED STATES OF AMERICA
AV46: 65 | AW46: xlLineMarkers | AX46: Line with Markers | AZ46: TEXAS | BA46: TX | BB46: UNITED STATES OF AMERICA
AV47: 66 | AW47: xlLineMarkersStacked | AX47: Stacked Line with Markers | AZ47: UTAH | BA47: UT | BB47: UNITED STATES OF AMERICA
AV48: 67 | AW48: xlLineMarkersStacked100 | AX48: 100% Stacked Line with Markers | AZ48: VERMONT | BA48: VT | BB48: UNITED STATES OF AMERICA
AV49: 63 | AW49: xlLineStacked | AX49: Stacked Line | AZ49: VIRGINIA | BA49: VA | BB49: UNITED STATES OF AMERICA
AV50: 64 | AW50: xlLineStacked100 | AX50: 100% Stacked Line | AZ50: WASHINGTON | BA50: WA | BB50: UNITED STATES OF AMERICA
AV51: 5 | AW51: xlPie | AX51: Pie | AZ51: WEST VIRGINIA | BA51: WV | BB51: UNITED STATES OF AMERICA
AV52: 69 | AW52: xlPieExploded | AX52: Exploded Pie | AZ52: WISCONSIN | BA52: WI | BB52: UNITED STATES OF AMERICA
AV53: 68 | AW53: xlPieOfPie | AX53: Pie of Pie | AZ53: WYOMING | BA53: WY | BB53: UNITED STATES OF AMERICA
AV54: 109 | AW54: xlPyramidBarClustered | AX54: Clustered Pyramid Bar | AZ54: AMERICAN SAMOA | BA54: AS | BB54: UNITED STATES OF AMERICA
AV55: 110 | AW55: xlPyramidBarStacked | AX55: Stacked Pyramid Bar | AZ55: DISTRICT OF COLUMBIA | BA55: DC | BB55: UNITED STATES OF AMERICA
AV56: 111 | AW56: xlPyramidBarStacked100 | AX56: 100% Stacked Pyramid Bar | AZ56: FEDERATED STATES OF MICRONESIA | BA56: FM | BB56: UNITED STATES OF AMERICA
AV57: 112 | AW57: xlPyramidCol | AX57: 3D Pyramid Column | AZ57: GUAM | BA57: GU | BB57: UNITED STATES OF AMERICA
AV58: 106 | AW58: xlPyramidColClustered | AX58: Clustered Pyramid Column | AZ58: MARSHALL ISLANDS | BA58: MH | BB58: UNITED STATES OF AMERICA
AV59: 107 | AW59: xlPyramidColStacked | AX59: Stacked Pyramid Column | AZ59: NORTHERN MARIANA ISLANDS | BA59: MP | BB59: UNITED STATES OF AMERICA
AV60: 108 | AW60: xlPyramidColStacked100 | AX60: 100% Stacked Pyramid Column | AZ60: PALAU | BA60: PW | BB60: UNITED STATES OF AMERICA
AV61: -4151 | AW61: xlRadar | AX61: Radar | AZ61: PUERTO RICO | BA61: PR | BB61: UNITED STATES OF AMERICA
AV62: 82 | AW62: xlRadarFilled | AX62: Filled Radar | AZ62: VIRGIN ISLANDS | BA62: VI | BB62: UNITED STATES OF AMERICA
AV63: 81 | AW63: xlRadarMarkers | AX63: Radar with Data Markers
AV64: 88 | AW64: xlStockHLC | AX64: High-Low-Close
AV65: 89 | AW65: xlStockOHLC | AX65: Open-High-Low-Close
AV66: 90 | AW66: xlStockVHLC | AX66: Volume-High-Low-Close
AV67: 91 | AW67: xlStockVOHLC | AX67: Volume-Open-High-Low-Close
AV68: 83 | AW68: xlSurface | AX68: 3D Surface
AV69: 85 | AW69: xlSurfaceTopView | AX69: Surface (Top View)
AV70: 86 | AW70: xlSurfaceTopViewWireframe | AX70: Surface (Top View wireframe)
AV71: 84 | AW71: xlSurfaceWireframe | AX71: 3D Surface (wireframe)
AV72: -4169 | AW72: xlXYScatter | AX72: Scatter
AV73: 74 | AW73: xlXYScatterLines | AX73: Scatter with Lines
AV74: 75 | AW74: xlXYScatterLinesNoMarkers | AX74: Scatter with Lines and No Data Markers
AV75: 72 | AW75: xlXYScatterSmooth | AX75: Scatter with Smoothed Lines
AV76: 73 | AW76: xlXYScatterSmoothNoMarkers | AX76: Scatter with Smoothed Lines and No Data Markers

Sheet PivotAnalytics (hidden)
B1: Values
A2: Row Labels | B2: Count of Activities | C2: Sum of Activity Time | D2: Sum of Activities | E2: Sum of Distance | F2: Average of Hrs/Activity | G2: Sum of Activity Calories | H2: Sum of Elev Gain
A3: (blank)
A4: Grand Total

Sheet PivotAnalytics1 (hidden)
B1: Values
A2: Row Labels | B2: Sum of Activity Calories | C2: Average of Cal/hour
A3: (blank)
A4: Grand Total

Sheet PivotAnalytics2 (hidden)
B1: Values
A2: Row Labels | B2: Average of Speed | C2: Average of Cal/hour
A3: (blank)
A4: Grand Total

Sheet PivotAnalytics3 (hidden)
B1: Values
A2: Row Labels | B2: Average of Hrs/Activity | C2: Average of Cal/hour
A3: (blank)
A4: Grand Total

Sheet PivotPlan (hidden)
B1: Column Labels
B2: Sum of Today Week | C2: Sum of Actual Hrs2 | D2: Sum of Plan. Hrs Chart
A3: Row Labels | B3: 0 | C3: 0 | D3: 0
A4: (blank)
A5: (blank) | B5: -21 | D5: 0
A6: Grand Total | B6: -21 | D6: 0

Sheet PivotCal (hidden)
B1: Values
A2: Row Labels | B2: Sum of Cal. | C2: Sum of Cal. Goal Chart | D2: Sum of Cal/hour
A3: (blank)
A4: (blank) | C4: 0
A5: Grand Total | C5: 0

Sheet PivotSpeed (hidden)
B1: Values
A2: Row Labels | B2: Sum of Speed | C2: Sum of Climber Index
A3: (blank)
A4: (blank)
A5: Grand Total

Sheet PivotWeight (hidden)
B1: Values
A2: Row Labels | B2: Sum of Weight | C2: Sum of HR
A3: (blank)
A4: (blank)
A5: Grand Total

Sheet PivotAddWeight (hidden)
A1: Row Labels | B1: Average of lb
A2: (blank)
A3: (blank)

Sheet PivotWeightTarget (hidden)
B1: Values
A2: Row Labels | B2: Sum of Weight | C2: Sum of Weight Goal
A3: (blank)
A4: (blank)
A5: Grand Total

Sheet PivotCalTarget (hidden)
B1: Values
A2: Row Labels | B2: Sum of Cal. | C2: Sum of Cal. Goal Chart
A3: (blank)
A4: (blank) | C4: 0
A5: Grand Total | C5: 0

Sheet PivotHRTarget (hidden)
B1: Values
A2: Row Labels | B2: Sum of HR | C2: Sum of HR Goal
A3: (blank)
A4: (blank)
A5: Grand Total

Sheet PivotPowerTarget (hidden)
B1: Values
A2: Row Labels | B2: Sum of Power | C2: Sum of Power Goal
A3: (blank)
A4: (blank)
A5: Grand Total
